Workbook

Sheet AJUNTAMENT
A1: Descripció del bé | B1: Data adquisició | C1: Valoració | D1: Millores | E1: Total | F1: Família | G1: Ubicació
A2: PARC DELS MESTRES - C/ DEL PADRÓ NÚM 63 - N. URBÀ | B2: 1943-09-24 | C2: 19782.4725 | D2: 1027.01 | E2: =SUM(C2,D2) -> 20809.4825 | F2: 111 - PARCS I JARDINS | G2: MUNICIPI
A3: PARC RIZAL - C/ RIZAL S/N - NUCLI URBÀ | B3: 1981-06-09 | C3: 82592.25 | D3: 18554.01 | E3: =SUM(C3,D3) -> 101146.26 | F3: 111 - PARCS I JARDINS | G3: MUNICIPI
A4: PARC PRIMER DE MAIG - C/ TAMARIT 89 - NUCLI URBÀ | B4: 1980-01-15 | C4: 168022.5 | D4: 1568195.05 | E4: 1736217.55 | F4: 111 - PARCS I JARDINS | G4: MUNICIPI
A5: PARC Mª LLUÏSA GALOBART - C/ PADRÓ Nº16 - N. URBÀ | B5: 1977-02-02 | C5: 173763 | D5: 1027.01 | E5: 174790.01 | F5: 111 - PARCS I JARDINS | G5: MUNICIPI
A6: PARC Mª REGORDOSA - CRTA. BARCELONA / TARRAGONA | B6: 1975-10-15 | C6: 193403.25 | D6: 1027.01 | E6: 194430.26 | F6: 111 - PARCS I JARDINS | G6: MUNICIPI
A7: PARC MASSOT - CRTA. BARCELONA - C/ BARCELONA | B7: 1975-10-15 | C7: 439599.75 | D7: 1027.01 | E7: 440626.76 | F7: 111 - PARCS I JARDINS | G7: MUNICIPI
A8: PARC GAUDÍ O DEL CEMENTIRI - NUCLI URBÀ | B8: 1977-09-07 | C8: 85591.5 | D8: 1027.01 | E8: 86618.51 | F8: 111 - PARCS I JARDINS | G8: MUNICIPI
A9: PARC CAN CALVET - CRTA. SANTIGA S/N - NUCLI URBÀ | B9: 1987-11-12 | C9: 76497 | D9: 1027.01 | E9: 77524.01 | F9: 111 - PARCS I JARDINS | G9: MUNICIPI
A10: PARC RIZAL INTERIOR - PASSEIG MONTURIOL - N. URBÀ | B10: 1992-01-01 | C10: 56308.5 | D10: 1027.01 | E10: 57335.51 | F10: 111 - PARCS I JARDINS | G10: MUNICIPI
A11: PARC DE LES MORERES - C/ S.JOSEP S/N -P. MOLÍ RATA | B11: 1979-03-21 | C11: 92905.155 | D11: 1027.01 | E11: 93932.165 | F11: 111 - PARCS I JARDINS | G11: MUNICIPI
A12: ZONA VERDA - PARCEL·LA Nº1 - P.P. BARICENTRO | B12: 1980-12-31 | C12: 95427.75 | D12: 1027.01 | E12: 96454.76 | F12: 111 - PARCS I JARDINS | G12: MUNICIPI
A13: ZONA VERDA - PARCEL·LA Nº2 - P.P. BARICENTRO | B13: 1980-12-31 | C13: 258258 | D13: 1027.01 | E13: 259285.01 | F13: 111 - PARCS I JARDINS | G13: MUNICIPI
A14: ZONA VERDA - PARCEL·LA Nº3 - P.P. BARICENTRO | B14: 1980-12-31 | C14: 4735902.503 | D14: 1027.01 | E14: 4736929.513 | F14: 111 - PARCS I JARDINS | G14: MUNICIPI
A15: PARC MOLÍ DE VENT - NUCLI URBÀ | B15: 1986-05-14 | C15: 117196.5 | D15: 1027.01 | E15: 118223.51 | F15: 111 - PARCS I JARDINS | G15: MUNICIPI
A16: Z. VERDA PINETONS - POL 3 PARC 3 - PINETONS BAIXA | B16: 1993-03-01 | C16: 413670.75 | D16: 1027.01 | E16: 414697.76 | F16: 111 - PARCS I JARDINS | G16: MUNICIPI
A17: PARC NORBERT FUSTÉ - P. GASSÓ VARGAS | B17: 1992-07-23 | C17: 198337.5 | D17: 57409.36 | E17: 255746.86 | F17: 111 - PARCS I JARDINS | G17: MUNICIPI
A18: PARC ELS PINETONS - ADQUISICIÓ PRÈVIA P. PARCIAL | B18: 1991-06-28 | C18: 7312004.445 | D18: 1027.01 | E18: 7313031.455 | F18: 111 - PARCS I JARDINS | G18: MUNICIPI
A19: ZONA VERDA - C/ TARRAGONA - CAN MASACHS | B19: 1993-05-06 | C19: 29670 | D19: 1027.01 | E19: 30697.01 | F19: 111 - PARCS I JARDINS | G19: MUNICIPI
A20: PARC RIU RIPOLL - C/ ESTACIÓ - CAN MASACHS | B20: 1996-04-18 | C20: 664575.75 | D20: 4394.7 | E20: 668970.45 | F20: 111 - PARCS I JARDINS | G20: MUNICIPI
A21: Z. VERDA FONT PETRICÓ - C/ ST. SEBASTIÀ -CAN TIANA | B21: 1995-02-10 | C21: 177052.5 | D21: 1027.01 | E21: 178079.51 | F21: 111 - PARCS I JARDINS | G21: MUNICIPI
A22: PARC FERRAN FERRÉ - C/ BALMES - NUCLI URBÀ | B22: 1995-12-13 | C22: 125517 | D22: 1027.01 | E22: 126544.01 | F22: 111 - PARCS I JARDINS | G22: MUNICIPI
A23: ZONA VERDA - C/ PADRÓ - P. II GASSÓ-VARGAS | B23: 1992-07-23 | C23: 108940.5 | D23: 1027.01 | E23: 109967.51 | F23: 111 - PARCS I JARDINS | G23: MUNICIPI
A24: Z. VERDA P.P. PINETONS VP-1 | B24: 1998-10-30 | C24: 43882.8975 | D24: 1027.01 | E24: 44909.9075 | F24: 111 - PARCS I JARDINS | G24: MUNICIPI
A25: Z. VERDA P.P. PINETONS VP-2 -AV.CATALUNYA 9-11 | B25: 1998-10-30 | C25: 1010510.535 | D25: 1027.01 | E25: 1011537.545 | F25: 111 - PARCS I JARDINS | G25: MUNICIPI
A26: Z. VERDA P.P. PINETONS VP-3 AV CATALUNYA 10 | B26: 1998-10-30 | C26: 500907 | D26: 1027.01 | E26: 501934.01 | F26: 111 - PARCS I JARDINS | G26: MUNICIPI
A27: Z. VERDA P.P. PINETONS VP-4 | B27: 1998-10-30 | C27: 282283.9275 | D27: 1027.01 | E27: 283310.9375 | F27: 111 - PARCS I JARDINS | G27: MUNICIPI
A28: Z. VERDA P.P. PINETONS VP-7 | B28: 1998-10-30 | C28: 324421.455 | D28: 1027.01 | E28: 325448.465 | F28: 111 - PARCS I JARDINS | G28: MUNICIPI
A29: Z. VERDA P.P. PINETONS VP-8 | B29: 1998-10-30 | C29: 83092.77 | D29: 1027.01 | E29: 84119.78 | F29: 111 - PARCS I JARDINS | G29: MUNICIPI
A30: Z. VERDA P.P. PINETONS VP-9 | B30: 1998-10-30 | C30: 55337.775 | D30: 1027.01 | E30: 56364.785 | F30: 111 - PARCS I JARDINS | G30: MUNICIPI
A31: Z. VERDA P.P. PINETONS VP-10 | B31: 1998-10-30 | C31: 1166742.113 | D31: 1027.01 | E31: 1167769.123 | F31: 111 - PARCS I JARDINS | G31: MUNICIPI
A32: Z. VERDA P.P. PINETONS VP-11 - AV. CATALUNYA 40 | B32: 1998-10-30 | C32: 743968.8 | D32: 1027.01 | E32: 744995.81 | F32: 111 - PARCS I JARDINS | G32: MUNICIPI
A33: Z. VERDA P.P. PINETONS VP-12 - RB VINYES 6 | B33: 1998-10-30 | C33: 116325.75 | D33: 1027.01 | E33: 117352.76 | F33: 111 - PARCS I JARDINS | G33: MUNICIPI
A34: Z. VERDA P.P. PINETONS VP-13 - RB PINETONS 47 BIS | B34: 1992-01-01 | C34: 57442.0875 | D34: 1027.01 | E34: 58469.0975 | F34: 111 - PARCS I JARDINS | G34: MUNICIPI
A35: ZONA VERDA - C/ PEDRAFORCA - P. MOLÍ D'EN RATA | B35: 2000-07-26 | C35: 92075.8785 | D35: 1027.01 | E35: 93102.8885 | F35: 111 - PARCS I JARDINS | G35: MUNICIPI
A36: PARC DOLORES IBARRURI - P. GASSÓ-VARGAS II | B36: 1992-07-23 | C36: 170151 | D36: 1027.01 | E36: 171178.01 | F36: 111 - PARCS I JARDINS | G36: MUNICIPI
A37: ZONA VERDA - PISOS EDIGSA - P. MOLÍ D'EN RATA | B37: 1992-01-01 | C37: 1 | D37: 1027.01 | E37: 1028.01 | F37: 111 - PARCS I JARDINS | G37: MUNICIPI
A38: Z. VERDA P.E.M.U. M. D'EN RATA UZ0301 | B38: 1999-12-23 | C38: 184179.75 | D38: 1027.01 | E38: 185206.76 | F38: 111 - PARCS I JARDINS | G38: MUNICIPI
A39: Z. VERDA P.E.M.U. M. D'EN RATA UZ0302 | B39: 1999-12-23 | C39: 1870.5 | D39: 1027.01 | E39: 2897.51 | F39: 111 - PARCS I JARDINS | G39: MUNICIPI
A40: Z. VERDA P.E.M.U. M. D'EN RATA UZ0303 | B40: 1999-12-23 | C40: 212688.75 | D40: 1027.01 | E40: 213715.76 | F40: 111 - PARCS I JARDINS | G40: MUNICIPI
A41: Z. VERDA P.E.M.U. M. D'EN RATA UZ0304 | B41: 1999-12-23 | C41: 25767.75 | D41: 1027.01 | E41: 26794.76 | F41: 111 - PARCS I JARDINS | G41: MUNICIPI
A42: Z. VERDA P.E.M.U. M. D'EN RATA UZ0306 | B42: 1999-12-23 | C42: 19156.5 | D42: 1027.01 | E42: 20183.51 | F42: 111 - PARCS I JARDINS | G42: MUNICIPI
A43: Z. VERDA P.P. PINETONS VP-6 | B43: 2006-02-01 | C43: 114423 | D43: 1027.01 | E43: 115450.01 | F43: 111 - PARCS I JARDINS | G43: MUNICIPI
A44: PARC ANSELM CLAVÉ - NUCLI URBÀ | B44: 1992-01-01 | C44: 53412.45 | D44: 12709.71 | E44: 66122.16 | F44: 111 - PARCS I JARDINS | G44: MUNICIPI
A45: Z.VERDA P.II P.P GASSÓ VARGAS (P-13) | B45: 1996-04-30 | C45: 172440.75 | D45: 1027.01 | E45: 173467.76 | F45: 111 - PARCS I JARDINS | G45: MUNICIPI
A46: Z.VERDA P.II P.P GASSÓ VARGAS (P-14) | B46: 1996-04-30 | C46: 51180.75 | D46: 1027.01 | E46: 52207.76 | F46: 111 - PARCS I JARDINS | G46: MUNICIPI
A47: Z.VERDA P.II P.P GASSÓ VARGAS (P-15) | B47: 1996-04-30 | C47: 64242 | D47: 1027.01 | E47: 65269.01 | F47: 111 - PARCS I JARDINS | G47: MUNICIPI
A48: Z.VERDA P.II P.P GASSÓ VARGAS (P-16) | B48: 1996-04-30 | C48: 8675.25 | D48: 1027.01 | E48: 9702.26 | F48: 111 - PARCS I JARDINS | G48: MUNICIPI
A49: Z.VERDA P.II P.P GASSÓ VARGAS (P-17) | B49: 1996-04-30 | C49: 6643.5 | D49: 1027.01 | E49: 7670.51 | F49: 111 - PARCS I JARDINS | G49: MUNICIPI
A50: Z.VERDA P.II P.P GASSÓ VARGAS (P-18) | B50: 1996-04-30 | C50: 12287.25 | D50: 1027.01 | E50: 13314.26 | F50: 111 - PARCS I JARDINS | G50: MUNICIPI
A51: Z.VERDA P.II P.P GASSÓ VARGAS (P-19) | B51: 1996-04-30 | C51: 40473.75 | D51: 1027.01 | E51: 41500.76 | F51: 111 - PARCS I JARDINS | G51: MUNICIPI
A52: Z.VERDA P.II P.P GASSÓ VARGAS (P-20) | B52: 1996-04-30 | C52: 2838 | D52: 1027.01 | E52: 3865.01 | F52: 111 - PARCS I JARDINS | G52: MUNICIPI
A53: Z.VERDA P.II P.P GASSÓ VARGAS (P-21) | B53: 1996-04-30 | C53: 7062.75 | D53: 1027.01 | E53: 8089.76 | F53: 111 - PARCS I JARDINS | G53: MUNICIPI
A54: Z.VERDA P.II P.P GASSÓ VARGAS (P-22) | B54: 1996-04-30 | C54: 11416.5 | D54: 1027.01 | E54: 12443.51 | F54: 111 - PARCS I JARDINS | G54: MUNICIPI
A55: PARC GASSÓ VARGAS - P.P. GASSÓ-VARGAS | B55: 1992-05-28 | C55: 1704799.5 | D55: 28218.87 | E55: 1733018.37 | F55: 111 - PARCS I JARDINS | G55: MUNICIPI
A56: ZONA VERDA FINCA IV- POLÍGON LA FERRERIA | B56: 2003-06-20 | C56: 1317380.25 | D56: 1027.01 | E56: 1318407.26 | F56: 111 - PARCS I JARDINS | G56: MUNICIPI
A57: ZONA VERDA FINCA V- POLÍGON LA FERRERIA | B57: 2003-04-16 | C57: 737460.75 | D57: 1027.01 | E57: 738487.76 | F57: 111 - PARCS I JARDINS | G57: MUNICIPI
A58: ZONA VERDA - RBLA VINYES (VEPU 1) - TORRENT II | B58: 1993-05-10 | C58: 118624.2075 | D58: 1027.01 | E58: 119651.2175 | F58: 111 - PARCS I JARDINS | G58: MUNICIPI
A59: PARC ORIOL MARTORELL (VEPU 2) - TORRENT II | B59: 1993-05-10 | C59: 550105.3425 | D59: 1546.93 | E59: 551652.2725 | F59: 111 - PARCS I JARDINS | G59: MUNICIPI
A60: Z. VERDA - P. PABLO PICASSO UA-5 (B-1) - CAN TIANA | B60: 2000-01-25 | C60: 28497.39 | D60: 1027.01 | E60: 29524.4 | F60: 111 - PARCS I JARDINS | G60: MUNICIPI
A61: Z. VERDA - P. PABLO PICASSO UA-5 (B-2) - CAN TIANA | B61: 2000-01-25 | C61: 10606.7025 | D61: 1027.01 | E61: 11633.7125 | F61: 111 - PARCS I JARDINS | G61: MUNICIPI
A62: ZONA VERDA ZV4 - P. JARDINS S. ROSA UA3 - C. TIANA | B62: 1998-07-08 | C62: 18740.1525 | D62: 1027.01 | E62: 19767.1625 | F62: 111 - PARCS I JARDINS | G62: MUNICIPI
A63: ZONA VERDA ZV3 - P. JARDINS S. ROSA UA3 - C. TIANA | B63: 2006-12-14 | C63: 34681.65 | D63: 1027.01 | E63: 35708.66 | F63: 111 - PARCS I JARDINS | G63: MUNICIPI
A64: ZONA VERDA ZV1 - P. JARDINS S. ROSA UA3 - C. TIANA | B64: 1998-07-08 | C64: 77741.5275 | D64: 1027.01 | E64: 78768.5375 | F64: 111 - PARCS I JARDINS | G64: MUNICIPI
A65: ZONA VERDA ZV2 - P. JARDINS S. ROSA UA3 - C. TIANA | B65: 1998-07-08 | C65: 57648.165 | D65: 1027.01 | E65: 58675.175 | F65: 111 - PARCS I JARDINS | G65: MUNICIPI
A66: ZONA VERDA - P.E.R.I. CAN BALLBE UA-2 - CAN TIANA | B66: 2000-02-23 | C66: 101974.5 | D66: 1027.01 | E66: 103001.51 | F66: 111 - PARCS I JARDINS | G66: MUNICIPI
A67: ZONA VERDA (ZV3) - PLA PARCIAL "EL MARTINET" | B67: 2005-09-13 | C67: 143389.95 | D67: 1027.01 | E67: =SUM(C67,D67) -> 144416.96 | F67: 111 - PARCS I JARDINS | G67: MUNICIPI
A68: ZONA VERDA (ZV4) - PLA PARCIAL "EL MARTINET" | B68: 2005-09-13 | C68: 310077.3 | D68: 1027.01 | E68: 311104.31 | F68: 111 - PARCS I JARDINS | G68: MUNICIPI
A69: ZONA VERDA (ZV5) - PLA PARCIAL "EL MARTINET" | B69: 2005-09-13 | C69: 61133.1 | D69: 1027.01 | E69: 62160.11 | F69: 111 - PARCS I JARDINS | G69: MUNICIPI
A70: ZONA VERDA (ZV6) - PLA PARCIAL "EL MARTINET" | B70: 2005-09-13 | C70: 160198.65 | D70: 136630.04 | E70: 296828.69 | F70: 111 - PARCS I JARDINS | G70: MUNICIPI
A71: PASSATGE DE L'AJUNTAMENT - NUCLI URBÀ | B71: 1998-01-01 | C71: 1 | D71: 19257.64 | E71: 19258.64 | F71: 113 - PLACES I VIALS | G71: MUNICIPI
A72: CARRER ÀNGEL GUIMERÀ - NUCLI URBÀ | B72: 1998-01-01 | C72: 1 | D72: 19257.64 | E72: 19258.64 | F72: 113 - PLACES I VIALS | G72: MUNICIPI
A73: CARRER ÀNSELM CLAVÉ - NUCLI URBÀ | B73: 1998-01-01 | C73: 1 | D73: 146668.1 | E73: 146669.1 | F73: 113 - PLACES I VIALS | G73: MUNICIPI
A74: PTGE. ANTONIO MACHADO - NUCLI URBÀ | B74: 1998-01-01 | C74: 1 | D74: 19257.64 | E74: 19258.64 | F74: 113 - PLACES I VIALS | G74: MUNICIPI
A75: PLAÇA AVRILLÉ - ELS PINETONS | B75: 1998-01-01 | C75: 1 | D75: 187541.03 | E75: 187542.03 | F75: 113 - PLACES I VIALS | G75: MUNICIPI
A76: CARRER BALMES - NUCLI URBÀ | B76: 1998-01-01 | C76: 1 | D76: 650244.95 | E76: 650245.95 | F76: 113 - PLACES I VIALS | G76: MUNICIPI
A77: CARRER BARBERÀ DEL VALLÈS - ELS PINETONS | B77: 1998-01-01 | C77: 1 | D77: 19257.64 | E77: 19258.64 | F77: 113 - PLACES I VIALS | G77: MUNICIPI
A78: CARRER BERGUEDÀ - NUCLI URBÀ | B78: 1998-01-01 | C78: 1 | D78: 19257.64 | E78: 19258.64 | F78: 113 - PLACES I VIALS | G78: MUNICIPI
A79: CARRER BESÓS - POLÍGON CADESBANK | B79: 1998-01-01 | C79: 1 | D79: 19257.64 | E79: 19258.64 | F79: 113 - PLACES I VIALS | G79: MUNICIPI
A80: CARRER BILBAO - POLÍGON CADESBANK | B80: 1998-01-01 | C80: 1 | D80: 19257.64 | E80: 19258.64 | F80: 113 - PLACES I VIALS | G80: MUNICIPI
A81: CARRER BLASCO IBÁÑEZ - POLÍGON LA SIBÈRIA | B81: 1998-01-01 | C81: 1 | D81: 19257.64 | E81: 19258.64 | F81: 113 - PLACES I VIALS | G81: MUNICIPI
A82: CARRER DE LA BONAVISTA - CAN TIANA | B82: 1998-01-01 | C82: 1 | D82: 19257.64 | E82: 19258.64 | F82: 113 - PLACES I VIALS | G82: MUNICIPI
A83: CARRER CALVARI - NUCLI URBÀ | B83: 1998-01-01 | C83: 1 | D83: 19257.64 | E83: 19258.64 | F83: 113 - PLACES I VIALS | G83: MUNICIPI
A84: CARRER CAN MASACHS - NUCLI URBÀ | B84: 1998-01-01 | C84: 1 | D84: 86083.42 | E84: 86084.42 | F84: 113 - PLACES I VIALS | G84: MUNICIPI
A85: CARRER CANIGÓ - NUCLI URBÀ | B85: 1998-01-01 | C85: 1 | D85: 19257.64 | E85: 19258.64 | F85: 113 - PLACES I VIALS | G85: MUNICIPI
A86: CARRER CASANOVAS - NUCLI URBÀ | B86: 1998-01-01 | C86: 1 | D86: 19257.64 | E86: 19258.64 | F86: 113 - PLACES I VIALS | G86: MUNICIPI
A87: AVINGUDA DE CATALUNYA - ELS PINETONS | B87: 1998-01-01 | C87: 1 | D87: 56787.19 | E87: 56788.19 | F87: 113 - PLACES I VIALS | G87: MUNICIPI
A88: PASSATGE DEL CELLER - NUCLI URBÀ | B88: 1998-01-01 | C88: 1 | D88: 19257.64 | E88: 19258.64 | F88: 113 - PLACES I VIALS | G88: MUNICIPI
A89: PASSATGE DELS CEPS - NUCLI URBÀ | B89: 1998-01-01 | C89: 1 | D89: 19257.64 | E89: 19258.64 | F89: 113 - PLACES I VIALS | G89: MUNICIPI
A90: CARRER DE LA CERANOVA - NUCLI URBÀ | B90: 1998-01-01 | C90: 1 | D90: 19257.64 | E90: 19258.64 | F90: 113 - PLACES I VIALS | G90: MUNICIPI
A91: CARRER CERDANYOLA DEL VALLÈS - ELS PINETONS | B91: 1998-01-01 | C91: 1 | D91: 19257.64 | E91: 19258.64 | F91: 113 - PLACES I VIALS | G91: MUNICIPI
A92: CARRER CERVANTES - NUCLI URBÀ | B92: 1998-01-01 | C92: 1 | D92: 19257.64 | E92: 19258.64 | F92: 113 - PLACES I VIALS | G92: MUNICIPI
A93: CARRER CLOS - CAN TIANA | B93: 1998-01-01 | C93: 1 | D93: 19257.64 | E93: 19258.64 | F93: 113 - PLACES I VIALS | G93: MUNICIPI
A94: PLAÇA D'EN CLOS - NUCLI URBÀ | B94: 1998-01-01 | C94: 1 | D94: 19257.64 | E94: 19258.64 | F94: 113 - PLACES I VIALS | G94: MUNICIPI
A95: CARRER COLLSEROLA - ELS PINETONS | B95: 1998-01-01 | C95: 1 | D95: 19257.64 | E95: 19258.64 | F95: 113 - PLACES I VIALS | G95: MUNICIPI
A96: PLAÇA DE LA CONSTITUCIÓ - NUCLI URBÀ | B96: 1998-01-01 | C96: 1 | D96: 19257.64 | E96: 19258.64 | F96: 113 - PLACES I VIALS | G96: MUNICIPI
A97: CARRER COT - POLÍGON CADESBANK | B97: 1998-01-01 | C97: 1 | D97: 26257.64 | E97: 26258.64 | F97: 113 - PLACES I VIALS | G97: MUNICIPI
A98: PASSATGE COT - NUCLI URBÀ | B98: 1998-01-01 | C98: 1 | D98: 19257.64 | E98: 19258.64 | F98: 113 - PLACES I VIALS | G98: MUNICIPI
A99: CARRER COVADONGA - NUCLI URBÀ | B99: 1998-01-01 | C99: 1 | D99: 19257.64 | E99: 19258.64 | F99: 113 - PLACES I VIALS | G99: MUNICIPI
A100: CARRER DOCTOR BERGÓS - NUCLI URBÀ | B100: 1998-01-01 | C100: 1 | D100: 19257.64 | E100: 19258.64 | F100: 113 - PLACES I VIALS | G100: MUNICIPI
A101: CARRER DOCTOR FIGAROLA - NUCLI URBÀ | B101: 1998-01-01 | C101: 1 | D101: 19257.64 | E101: 19258.64 | F101: 113 - PLACES I VIALS | G101: MUNICIPI
A102: CARRER DOCTOR GIL - CAN TIANA | B102: 1998-01-01 | C102: 1 | D102: 19257.64 | E102: 19258.64 | F102: 113 - PLACES I VIALS | G102: MUNICIPI
A103: CARRER DOCTOR ZAMENHOFF - NUCLI URBÀ | B103: 1998-01-01 | C103: 1 | D103: 19257.64 | E103: 19258.64 | F103: 113 - PLACES I VIALS | G103: MUNICIPI
A104: CARRER DUC DE TETUAN - NUCLI URBÀ | B104: 1998-01-01 | C104: 1 | D104: 19257.64 | E104: 19258.64 | F104: 113 - PLACES I VIALS | G104: MUNICIPI
A105: PASSATGE DUC DE TETUAN - NUCLI URBÀ | B105: 1998-01-01 | C105: 1 | D105: 19257.64 | E105: 19258.64 | F105: 113 - PLACES I VIALS | G105: MUNICIPI
A106: CARRER DE L'ERA - ELS PINETONS | B106: 1998-01-01 | C106: 1 | D106: 19257.64 | E106: 19258.64 | F106: 113 - PLACES I VIALS | G106: MUNICIPI
A107: CARRER DE LES ESCOLES - NUCLI URBÀ | B107: 1998-01-01 | C107: 1 | D107: 19257.64 | E107: 19258.64 | F107: 113 - PLACES I VIALS | G107: MUNICIPI
A108: CARRETERA DE L'ESTACIÓ - NUCLI URBÀ | B108: 1998-01-01 | C108: 1 | D108: 26180.51 | E108: 26181.51 | F108: 113 - PLACES I VIALS | G108: MUNICIPI
A109: CARRER DE L'ESTRELLA - NUCLI URBÀ | B109: 1998-01-01 | C109: 1 | D109: 19257.64 | E109: 19258.64 | F109: 113 - PLACES I VIALS | G109: MUNICIPI
A110: CARRER FEDERICO GARCÍA LORCA - NUCLI URBÀ | B110: 1998-01-01 | C110: 1 | D110: 19257.64 | E110: 19258.64 | F110: 113 - PLACES I VIALS | G110: MUNICIPI
A111: CARRER FERRAN EL CATÒLIC - NUCLI URBÀ | B111: 1998-01-01 | C111: 1 | D111: 19257.64 | E111: 19258.64 | F111: 113 - PLACES I VIALS | G111: MUNICIPI
A112: PLAÇA DE LA FONT - NUCLI URBÀ | B112: 1998-01-01 | C112: 1 | D112: 19257.64 | E112: 19258.64 | F112: 113 - PLACES I VIALS | G112: MUNICIPI
A113: CARRER FONT DE LA MINA - POLÍGON ELS PINETONS | B113: 1998-01-01 | C113: 1 | D113: 19257.64 | E113: 19258.64 | F113: 113 - PLACES I VIALS | G113: MUNICIPI
A114: CARRER FONTANELLA - NUCLI URBÀ | B114: 1998-01-01 | C114: 1 | D114: 19257.64 | E114: 19258.64 | F114: 113 - PLACES I VIALS | G114: MUNICIPI
A115: CARRER GENERAL PRIM - NUCLI URBÀ | B115: 1998-01-01 | C115: 1 | D115: 19257.64 | E115: 19258.64 | F115: 113 - PLACES I VIALS | G115: MUNICIPI
A116: CARRER GIRONA - NUCLI URBÀ | B116: 1998-01-01 | C116: 1 | D116: 19257.64 | E116: 19258.64 | F116: 113 - PLACES I VIALS | G116: MUNICIPI
A117: CARRER INDÚSTRIA - POLÍGON CADESBANK | B117: 1998-01-01 | C117: 1 | D117: 19257.64 | E117: 19258.64 | F117: 113 - PLACES I VIALS | G117: MUNICIPI
A118: CARRER ISABEL LA CATÒLICA - NUCLI URBÀ | B118: 1998-01-01 | C118: 1 | D118: 38295.72 | E118: 38296.72 | F118: 113 - PLACES I VIALS | G118: MUNICIPI
A119: CARRER JACINT VERDAGUER - NUCLI URBÀ | B119: 1998-01-01 | C119: 1 | D119: 19257.64 | E119: 19258.64 | F119: 113 - PLACES I VIALS | G119: MUNICIPI
A120: CARRER JAUME I - POLÍGON CADESBANK | B120: 1998-01-01 | C120: 1 | D120: 19257.64 | E120: 19258.64 | F120: 113 - PLACES I VIALS | G120: MUNICIPI
A121: CARRER JOAN MIRÓ - NUCLI URBÀ | B121: 1998-01-01 | C121: 1 | D121: 19257.64 | E121: 19258.64 | F121: 113 - PLACES I VIALS | G121: MUNICIPI
A122: CARRER JOSEP DE VIURE - NUCLI URBÀ | B122: 1998-01-01 | C122: 1 | D122: 19257.64 | E122: 19258.64 | F122: 113 - PLACES I VIALS | G122: MUNICIPI
A123: PLAÇA JOSEP MARIA BRULL - ELS PINETONS | B123: 1998-01-01 | C123: 1 | D123: 19257.64 | E123: 19258.64 | F123: 113 - PLACES I VIALS | G123: MUNICIPI
A124: CARRER LA PALMA - NUCLI URBÀ | B124: 1998-01-01 | C124: 1 | D124: 19257.64 | E124: 19258.64 | F124: 113 - PLACES I VIALS | G124: MUNICIPI
A125: CARRER LEPANT - CAN TIANA | B125: 1998-01-01 | C125: 1 | D125: 19257.64 | E125: 19258.64 | F125: 113 - PLACES I VIALS | G125: MUNICIPI
A126: CARRER LLOBREGAT - POLÍGON CADESBANK | B126: 1998-01-01 | C126: 1 | D126: 19257.64 | E126: 19258.64 | F126: 113 - PLACES I VIALS | G126: MUNICIPI
A127: PLAÇA LLUÍS MILLET - ELS PINETONS | B127: 1998-01-01 | C127: 1 | D127: 19257.64 | E127: 19258.64 | F127: 113 - PLACES I VIALS | G127: MUNICIPI
A128: CARRER LLUNA - NUCLI URBÀ | B128: 1998-01-01 | C128: 1 | D128: 19257.64 | E128: 19258.64 | F128: 113 - PLACES I VIALS | G128: MUNICIPI
A129: CARRER MAGALLANES - NUCLI URBÀ | B129: 1998-01-01 | C129: 1 | D129: 281641.32 | E129: 281642.32 | F129: 113 - PLACES I VIALS | G129: MUNICIPI
A130: CARRER MANCOMUNITAT - CAN TIANA | B130: 1998-01-01 | C130: 1 | D130: 19257.64 | E130: 19258.64 | F130: 113 - PLACES I VIALS | G130: MUNICIPI
A131: CARRER MARAGALL - NUCLI URBÀ | B131: 1998-01-01 | C131: 1 | D131: 373774.94 | E131: =SUM(C131,D131) -> 373775.94 | F131: 113 - PLACES I VIALS | G131: MUNICIPI
A132: PLAÇA MARIA AURÈLIA CAMPMANY - ELS PINETONS | B132: 1998-01-01 | C132: 1 | D132: 19257.64 | E132: 19258.64 | F132: 113 - PLACES I VIALS | G132: MUNICIPI
A133: AVINGUDA MARIA TORRAS - ELS PINETONS | B133: 1998-01-01 | C133: 1 | D133: 141099.29 | E133: 141100.29 | F133: 113 - PLACES I VIALS | G133: MUNICIPI
A134: PASSATGE MASSOT - CAN TIANA | B134: 1998-01-01 | C134: 1 | D134: 19257.64 | E134: 19258.64 | F134: 113 - PLACES I VIALS | G134: MUNICIPI
A135: AVINGUDA DEL MEDITERRANI - ELS PINETONS | B135: 1998-01-01 | C135: 1 | D135: 174513.37 | E135: 174514.37 | F135: 113 - PLACES I VIALS | G135: MUNICIPI
A136: CARRER MERCÈ - POLÍGON CAN MAS | B136: 1998-01-01 | C136: 1 | D136: 68954.03 | E136: 68955.03 | F136: 113 - PLACES I VIALS | G136: MUNICIPI
A137: CARRER METAL·LÚRGIA - POLÍGON CAN MAS | B137: 1998-01-01 | C137: 1 | D137: 19257.64 | E137: 19258.64 | F137: 113 - PLACES I VIALS | G137: MUNICIPI
A138: CARRER MILÀ - POLÍGON CADESBANK | B138: 1998-01-01 | C138: 1 | D138: 29987.18 | E138: 29988.18 | F138: 113 - PLACES I VIALS | G138: MUNICIPI
A139: CARRER MOLÍ - POLÍGON CADESBANK | B139: 1998-01-01 | C139: 1 | D139: 19257.64 | E139: 19258.64 | F139: 113 - PLACES I VIALS | G139: MUNICIPI
A140: CARRER MOLÍ D'EN GINESTAR - NUCLI URBÀ | B140: 1998-01-01 | C140: 1 | D140: 19257.64 | E140: 19258.64 | F140: 113 - PLACES I VIALS | G140: MUNICIPI
A141: CARRER MOLÍ D'EN RATA - NUCLI URBÀ | B141: 1998-01-01 | C141: 1 | D141: 139096.33 | E141: 139097.33 | F141: 113 - PLACES I VIALS | G141: MUNICIPI
A142: CARRER MOLÍ D'EN XEC - POLÍGON CAN BERNEDA | B142: 1998-01-01 | C142: 1 | D142: 19257.64 | E142: 19258.64 | F142: 113 - PLACES I VIALS | G142: MUNICIPI
A143: CARRER MONTCADA - NUCLI URBÀ | B143: 1998-01-01 | C143: 1 | D143: 19257.64 | E143: 19258.64 | F143: 113 - PLACES I VIALS | G143: MUNICIPI
A144: CARRER MONTSENY - NUCLI URBÀ | B144: 1998-01-01 | C144: 1 | D144: 19257.64 | E144: 19258.64 | F144: 113 - PLACES I VIALS | G144: MUNICIPI
A145: CARRER MONTURIOL - NUCLI URBÀ | B145: 1998-01-01 | C145: 1 | D145: 19257.64 | E145: 19258.64 | F145: 113 - PLACES I VIALS | G145: MUNICIPI
A146: CARRER MORERES - NUCLI URBÀ | B146: 1998-01-01 | C146: 1 | D146: 19257.64 | E146: 19258.64 | F146: 113 - PLACES I VIALS | G146: MUNICIPI
A147: PASSATGE MORERES - NUCLI URBÀ | B147: 1998-01-01 | C147: 1 | D147: 19257.64 | E147: 19258.64 | F147: 113 - PLACES I VIALS | G147: MUNICIPI
A148: PASSATGE NÍQUEL - POLÍGON CADESBANK | B148: 1998-01-01 | C148: 1 | D148: 19257.64 | E148: 19258.64 | F148: 113 - PLACES I VIALS | G148: MUNICIPI
A149: CARRER DEL NORD - NUCLI URBÀ | B149: 1998-01-01 | C149: 1 | D149: 54011.94 | E149: 54012.94 | F149: 113 - PLACES I VIALS | G149: MUNICIPI
A150: CARRER NOSTRA SENYORA DEL PILAR - CAN TIANA | B150: 1998-01-01 | C150: 1 | D150: 48467.24 | E150: 48468.24 | F150: 113 - PLACES I VIALS | G150: MUNICIPI
A151: CARRER NOSTRA SENYORA DELS ÀNGELS - CAN TIANA | B151: 1998-01-01 | C151: 1 | D151: 19257.64 | E151: 19258.64 | F151: 113 - PLACES I VIALS | G151: MUNICIPI
A152: CARRER NOU - NUCLI URBÀ | B152: 1998-01-01 | C152: 1 | D152: 70697.6 | E152: 70698.6 | F152: 113 - PLACES I VIALS | G152: MUNICIPI
A153: PLAÇA ONZE DE SETEMBRE - NUCLI URBÀ | B153: 1998-01-01 | C153: 1 | D153: 215572.1 | E153: 215573.1 | F153: 113 - PLACES I VIALS | G153: MUNICIPI
A154: CARRER PABLO PICASSO - CAN TIANA | B154: 1998-01-01 | C154: 1 | D154: 19257.64 | E154: 19258.64 | F154: 113 - PLACES I VIALS | G154: MUNICIPI
A155: CARRER PADRÓ - NUCLI URBÀ | B155: 1998-01-01 | C155: 1 | D155: 127478.67 | E155: 127479.67 | F155: 113 - PLACES I VIALS | G155: MUNICIPI
A156: CARRER PALAU AUSIT - NUCLI URBÀ | B156: 1998-01-01 | C156: 1 | D156: 19257.64 | E156: 19258.64 | F156: 113 - PLACES I VIALS | G156: MUNICIPI
A157: PLAÇA PALAU AUSIT - NUCLI URBÀ | B157: 1998-01-01 | C157: 1 | D157: 19257.64 | E157: 19258.64 | F157: 113 - PLACES I VIALS | G157: MUNICIPI
A158: CARRER PARC - POLÍGON ELS PINETONS | B158: 1998-01-01 | C158: 1 | D158: 19257.64 | E158: 19258.64 | F158: 113 - PLACES I VIALS | G158: MUNICIPI
A159: CARRER PAU CASALS - NUCLI URBÀ | B159: 1998-01-01 | C159: 1 | D159: 59956.31 | E159: 59957.31 | F159: 113 - PLACES I VIALS | G159: MUNICIPI
A160: CARRER PEDRAFORCA - NUCLI URBÀ | B160: 1998-01-01 | C160: 1 | D160: 19257.64 | E160: 19258.64 | F160: 113 - PLACES I VIALS | G160: MUNICIPI
A161: RAMBLA DELS PINETONS - ELS PINETONS | B161: 1998-01-01 | C161: 1 | D161: 236206.07 | E161: 236207.07 | F161: 113 - PLACES I VIALS | G161: MUNICIPI
A162: CARRER PIZARRO - ELS PINETONS | B162: 1998-01-01 | C162: 1 | D162: 837791.61 | E162: 837792.61 | F162: 113 - PLACES I VIALS | G162: MUNICIPI
A163: CARRER POLLANCRES - POLÍGON CAN MAS | B163: 1998-01-01 | C163: 1 | D163: 19257.64 | E163: 19258.64 | F163: 113 - PLACES I VIALS | G163: MUNICIPI
A164: CARRER PUIGMAL - ELS PINETONS | B164: 1998-01-01 | C164: 1 | D164: 19257.64 | E164: 19258.64 | F164: 113 - PLACES I VIALS | G164: MUNICIPI
A165: PASSATGE QUEVEDO - NUCLI URBÀ | B165: 1998-01-01 | C165: 1 | D165: 19257.64 | E165: 19258.64 | F165: 113 - PLACES I VIALS | G165: MUNICIPI
A166: CARRER RAFAEL ALBERTI - NUCLI URBÀ | B166: 1998-01-01 | C166: 1 | D166: 264072.03 | E166: 264073.03 | F166: 113 - PLACES I VIALS | G166: MUNICIPI
A167: CARRER RAMON LLULL - NUCLI URBÀ | B167: 1998-01-01 | C167: 1 | D167: 19257.64 | E167: 19258.64 | F167: 113 - PLACES I VIALS | G167: MUNICIPI
A168: CARRER RAMON Y CAJAL - NUCLI URBÀ | B168: 1998-01-01 | C168: 1 | D168: 19257.64 | E168: 19258.64 | F168: 113 - PLACES I VIALS | G168: MUNICIPI
A169: CARRER DEL RIU - POLÍGON CADESBANK | B169: 1998-01-01 | C169: 1 | D169: 19257.64 | E169: 19258.64 | F169: 113 - PLACES I VIALS | G169: MUNICIPI
A170: AVINGUDA RIU RIPOLL - POLÍGON CADESBANK | B170: 1998-01-01 | C170: 1 | D170: 911861.08 | E170: 911862.08 | F170: 113 - PLACES I VIALS | G170: MUNICIPI
A171: CARRER RIZAL - NUCLI URBÀ | B171: 1998-01-01 | C171: 1 | D171: 19257.64 | E171: 19258.64 | F171: 113 - PLACES I VIALS | G171: MUNICIPI
A172: CARRER ROCABRUNA - NUCLI URBÀ | B172: 1998-01-01 | C172: 1 | D172: 19257.64 | E172: 19258.64 | F172: 113 - PLACES I VIALS | G172: MUNICIPI
A173: CARRER ROSARI - CAN TIANA | B173: 1998-01-01 | C173: 1 | D173: 19257.64 | E173: 19258.64 | F173: 113 - PLACES I VIALS | G173: MUNICIPI
A174: CARRER SAGRERA - NUCLI URBÀ | B174: 1998-01-01 | C174: 1 | D174: 19257.64 | E174: 19258.64 | F174: 113 - PLACES I VIALS | G174: MUNICIPI
A175: CARRER SAGUNT - POLÍGON CADESBANK | B175: 1998-01-01 | C175: 1 | D175: 19257.64 | E175: 19258.64 | F175: 113 - PLACES I VIALS | G175: MUNICIPI
A176: CARRER SALUT - NUCLI URBÀ | B176: 1998-01-01 | C176: 1 | D176: 19257.64 | E176: 19258.64 | F176: 113 - PLACES I VIALS | G176: MUNICIPI
A177: CARRER SALVADOR ESPRIU - NUCLI URBÀ | B177: 1998-01-01 | C177: 1 | D177: 19257.64 | E177: 19258.64 | F177: 113 - PLACES I VIALS | G177: MUNICIPI
A178: CARRER SANT ANDREU - NUCLI URBÀ | B178: 1998-01-01 | C178: 1 | D178: 231921.46 | E178: 231922.46 | F178: 113 - PLACES I VIALS | G178: MUNICIPI
A179: RAMBLA SANT ANDREU - NUCLI URBÀ | B179: 1998-01-01 | C179: 1 | D179: 19257.64 | E179: 19258.64 | F179: 113 - PLACES I VIALS | G179: MUNICIPI
A180: PASSATGE SANT CARLES - NUCLI URBÀ | B180: 1998-01-01 | C180: 1 | D180: 19257.64 | E180: 19258.64 | F180: 113 - PLACES I VIALS | G180: MUNICIPI
A181: CARRER SANT ENRIC - NUCLI URBÀ | B181: 1998-01-01 | C181: 1 | D181: 19257.64 | E181: 19258.64 | F181: 113 - PLACES I VIALS | G181: MUNICIPI
A182: PASSATGE SANT ENRIC - NUCLI URBÀ | B182: 1998-01-01 | C182: 1 | D182: 19257.64 | E182: 19258.64 | F182: 113 - PLACES I VIALS | G182: MUNICIPI
A183: RAMBLA SANT ESTEVE - NUCLI URBÀ | B183: 1998-01-01 | C183: 1 | D183: 999558.28 | E183: 999559.28 | F183: 113 - PLACES I VIALS | G183: MUNICIPI
A184: CARRER SANT FRANCESC - CAN TIANA | B184: 1998-01-01 | C184: 1 | D184: 596971.39 | E184: 596972.39 | F184: 113 - PLACES I VIALS | G184: MUNICIPI
A185: CARRER SANT JAUME - NUCLI URBÀ | B185: 1998-01-01 | C185: 1 | D185: 20069.64 | E185: 20070.64 | F185: 113 - PLACES I VIALS | G185: MUNICIPI
A186: CARRER SANT JOAN - NUCLI URBÀ | B186: 1998-01-01 | C186: 1 | D186: 19257.64 | E186: 19258.64 | F186: 113 - PLACES I VIALS | G186: MUNICIPI
A187: RAMBLA SANT JORDI - NUCLI URBÀ | B187: 1998-01-01 | C187: 1 | D187: 2462175.8 | E187: 2462176.8 | F187: 113 - PLACES I VIALS | G187: MUNICIPI
A188: CARRER SANT JOSEP - ELS PINETONS | B188: 1998-01-01 | C188: 1 | D188: 73710.84 | E188: 73711.84 | F188: 113 - PLACES I VIALS | G188: MUNICIPI
A189: CARRER SANT LLUÍS - NUCLI URBÀ | B189: 1998-01-01 | C189: 1 | D189: 19257.64 | E189: 19258.64 | F189: 113 - PLACES I VIALS | G189: MUNICIPI
A190: CARRER SANT PERE - POLÍGON LA SIBÈRIA | B190: 1998-01-01 | C190: 1 | D190: 19257.64 | E190: 19258.64 | F190: 113 - PLACES I VIALS | G190: MUNICIPI
A191: CARRER SANT POL - POLÍGON CAN MAS | B191: 1998-01-01 | C191: 1 | D191: 19257.64 | E191: 19258.64 | F191: 113 - PLACES I VIALS | G191: MUNICIPI
A192: CARRER SANT SALVADOR - NUCLI URBÀ | B192: 1998-01-01 | C192: 1 | D192: 109096.33 | E192: 109097.33 | F192: 113 - PLACES I VIALS | G192: MUNICIPI
A193: CARRER SEBASTIÀ - CAN TIANA | B193: 1998-01-01 | C193: 1 | D193: 19257.64 | E193: 19258.64 | F193: 113 - PLACES I VIALS | G193: MUNICIPI
A194: CARRER SANTA ROSA - CAN TIANA | B194: 1998-01-01 | C194: 1 | D194: 19257.64 | E194: 19258.64 | F194: 113 - PLACES I VIALS | G194: MUNICIPI
A195: CARRER SARRIÀ DE TER - NUCLI URBÀ | B195: 1998-01-01 | C195: 1 | D195: 132111.52 | E195: =SUM(C195,D195) -> 132112.52 | F195: 113 - PLACES I VIALS | G195: MUNICIPI
A196: CARRER SEGRE - POLÍGON CADESBANK | B196: 1998-01-01 | C196: 1 | D196: 19257.64 | E196: 19258.64 | F196: 113 - PLACES I VIALS | G196: MUNICIPI
A197: CARRER SERRA DE LA SALUT - NUCLI URBÀ | B197: 1998-01-01 | C197: 1 | D197: 21630.13 | E197: 21631.13 | F197: 113 - PLACES I VIALS | G197: MUNICIPI
A198: CARRER SOL - NUCLI URBÀ | B198: 1998-01-01 | C198: 1 | D198: 53722.95 | E198: 53723.95 | F198: 113 - PLACES I VIALS | G198: MUNICIPI
A199: CARRER TAMARIT - POLÍGON CAN MAS | B199: 1998-01-01 | C199: 1 | D199: 23145.08 | E199: 23146.08 | F199: 113 - PLACES I VIALS | G199: MUNICIPI
A200: CARRER TARRAGONA - POLÍGON CAN MASACHS | B200: 1998-01-01 | C200: 1 | D200: 53055.83 | E200: 53056.83 | F200: 113 - PLACES I VIALS | G200: MUNICIPI
... 1397 more rows

Sheet PAME
A1: Descripció del bé | B1: Data adquisició | C1: Valoració | D1: Millores | E1: Total | F1: Família | G1: Ubicació
A2: PAVELLÓ J. CREUS I CFA - C/ PIZARRO - ELS PINETONS | B2: 1968-01-23 | C2: 1369279.23 | D2: 555350.29 | E2: 1924629.52 | F2: 121 - INMOBLES (DOMINI PÚBLIC) | G2: MUNICIPI
A3: COMPLEX ESPORTIU - C/ MAGALLANES 26 - Z. ESPORTIVA | B3: 1981-06-11 | C3: 3484803.75 | D3: 2645319.62 | E3: 6130123.37 | F3: 121 - INMOBLES (DOMINI PÚBLIC) | G3: MUNICIPI
A4: CAMP DE FUTBOL - C/ MAGALLANES S/N - Z. ESPORTIVA | B4: 1971-05-05 | C4: 328380.24 | D4: 23225.15 | E4: 351605.39 | F4: 121 - INMOBLES (DOMINI PÚBLIC) | G4: MUNICIPI
A5: CAMP FUTBOL L'INDUSTRIAL - C/ PADRÓ - P. GASSÓ-V. | B5: 1992-07-23 | C5: 1050916.5 | D5: 1646724.35 | E5: 2697640.85 | F5: 121 - INMOBLES (DOMINI PÚBLIC) | G5: MUNICIPI
A6: PAVELLÓ FRANCESC BARNEDA - C/ TAMARIT 30 - N. URBÀ | B6: 1996-07-29 | C6: 340484.53 | D6: 386866.43 | E6: 727350.96 | F6: 121 - INMOBLES (DOMINI PÚBLIC) | G6: MUNICIPI
A7: TERRENY PAVELLÓ J. CREUS I CFA - C/ PIZARRO - ELS PINETONS | B7: 1968-01-23 | C7: 140416.5 | D7: 0 | E7: 140416.5 | F7: 121 - INMOBLES (DOMINI PÚBLIC) | G7: MUNICIPI
A8: TERRENY COMPLEX ESPORTIU - C/ MAGALLANES 26 - Z. ESPORTIVA | B8: 1981-06-11 | C8: 1592247 | D8: 0 | E8: 1592247 | F8: 121 - INMOBLES (DOMINI PÚBLIC) | G8: MUNICIPI
A9: TERRENY CAMP DE FUTBOL - C/ MAGALLANES S/N - Z. ESPORTIVA | B9: 1971-05-05 | C9: 380614.5 | D9: 0 | E9: 380614.5 | F9: 121 - INMOBLES (DOMINI PÚBLIC) | G9: MUNICIPI
A10: TERRENY CAMP FUTBOL L'INDUSTRIAL - C/ PADRÓ - P. GASSÓ-V. | B10: 1992-07-23 | C10: 420862.5 | D10: 0 | E10: 420862.5 | F10: 121 - INMOBLES (DOMINI PÚBLIC) | G10: MUNICIPI
A11: TERRENY PAVELLÓ FRANCESC BARNEDA - C/ TAMARIT 30 - N. URBÀ | B11: 1996-07-29 | C11: 25454.925 | D11: 0 | E11: 25454.925 | F11: 121 - INMOBLES (DOMINI PÚBLIC) | G11: MUNICIPI
A12: CADIRAM | B12: 2007-12-31 | C12: 27360 | D12: 0 | E12: 27360 | F12: 147 - MOBILIARI | G12: POLIESPORTIU / CAMP DE FUTBOL RIPOLLET
A13: TAULES | B13: 2007-12-31 | C13: 6600 | D13: 0 | E13: 6600 | F13: 147 - MOBILIARI | G13: POLIESPORTIU / CAMP DE FUTBOL RIPOLLET
A14: MOSTRADOR | B14: 2007-12-31 | C14: 800 | D14: 0 | E14: 800 | F14: 147 - MOBILIARI | G14: POLIESPORTIU / CAMP DE FUTBOL RIPOLLET
A15: BUCS DE CALAIXOS | B15: 2007-12-31 | C15: 880 | D15: 0 | E15: 880 | F15: 147 - MOBILIARI | G15: POLIESPORTIU / CAMP DE FUTBOL RIPOLLET
A16: PC | B16: 2007-12-31 | C16: 700 | D16: 0 | E16: 700 | F16: 131 - EQUIPAMENTS DE PROCESSO D'INFORMACIÓ | G16: POLIESPORTIU / CAMP DE FUTBOL RIPOLLET
A17: MONITOR | B17: 2007-12-31 | C17: 90 | D17: 0 | E17: 90 | F17: 131 - EQUIPAMENTS DE PROCESSO D'INFORMACIÓ | G17: POLIESPORTIU / CAMP DE FUTBOL RIPOLLET
A18: EXPENDEDOR TICKETS | B18: 2007-12-31 | C18: 180 | D18: 0 | E18: 180 | F18: 147 - MOBILIARI | G18: POLIESPORTIU / CAMP DE FUTBOL RIPOLLET
A19: CAIXA ENREGISTRADORA | B19: 2007-12-31 | C19: 400 | D19: 0 | E19: 400 | F19: 147 - MOBILIARI | G19: POLIESPORTIU / CAMP DE FUTBOL RIPOLLET
A20: PC | B20: 2007-12-31 | C20: 700 | D20: 0 | E20: 700 | F20: 131 - EQUIPAMENTS DE PROCESSO D'INFORMACIÓ | G20: POLIESPORTIU / CAMP DE FUTBOL RIPOLLET
A21: MONITOR | B21: 2007-12-31 | C21: 90 | D21: 0 | E21: 90 | F21: 131 - EQUIPAMENTS DE PROCESSO D'INFORMACIÓ | G21: POLIESPORTIU / CAMP DE FUTBOL RIPOLLET
A22: CAIXA ENREGISTRADORA | B22: 2007-12-31 | C22: 400 | D22: 0 | E22: 400 | F22: 147 - MOBILIARI | G22: POLIESPORTIU / CAMP DE FUTBOL RIPOLLET
A23: IMPRESSORA MULTIFUNCIO | B23: 2007-12-31 | C23: 500 | D23: 0 | E23: 500 | F23: 131 - EQUIPAMENTS DE PROCESSO D'INFORMACIÓ | G23: POLIESPORTIU / CAMP DE FUTBOL RIPOLLET
A24: MONITOR | B24: 2007-12-31 | C24: 90 | D24: 0 | E24: 90 | F24: 131 - EQUIPAMENTS DE PROCESSO D'INFORMACIÓ | G24: POLIESPORTIU / CAMP DE FUTBOL RIPOLLET
A25: PC | B25: 2007-12-31 | C25: 700 | D25: 0 | E25: 700 | F25: 131 - EQUIPAMENTS DE PROCESSO D'INFORMACIÓ | G25: POLIESPORTIU / CAMP DE FUTBOL RIPOLLET
A26: EXPENDEDOR TICKETS | B26: 2007-12-31 | C26: 180 | D26: 0 | E26: 180 | F26: 147 - MOBILIARI | G26: POLIESPORTIU / CAMP DE FUTBOL RIPOLLET
A27: DESFIBRIL·LADOR | B27: 2007-12-31 | C27: 1100 | D27: 0 | E27: 1100 | F27: 147 - MOBILIARI | G27: POLIESPORTIU / CAMP DE FUTBOL RIPOLLET
A28: MAQUINA CONEXIO PC TV | B28: 2007-12-31 | C28: 110 | D28: 0 | E28: 110 | F28: 131 - EQUIPAMENTS DE PROCESSO D'INFORMACIÓ | G28: POLIESPORTIU / CAMP DE FUTBOL RIPOLLET
A29: MINI CADENA | B29: 2007-12-31 | C29: 100 | D29: 0 | E29: 100 | F29: 147 - MOBILIARI | G29: POLIESPORTIU / CAMP DE FUTBOL RIPOLLET
A30: MICROFON | B30: 2007-12-31 | C30: 80 | D30: 0 | E30: 80 | F30: 147 - MOBILIARI | G30: POLIESPORTIU / CAMP DE FUTBOL RIPOLLET
A31: AMPLIFICADOR | B31: 2007-12-31 | C31: 300 | D31: 0 | E31: 300 | F31: 147 - MOBILIARI | G31: POLIESPORTIU / CAMP DE FUTBOL RIPOLLET
A32: AMPLIFICADOR | B32: 2007-12-31 | C32: 300 | D32: 0 | E32: 300 | F32: 147 - MOBILIARI | G32: POLIESPORTIU / CAMP DE FUTBOL RIPOLLET
A33: SWITCH | B33: 2007-12-31 | C33: 50 | D33: 0 | E33: 50 | F33: 131 - EQUIPAMENTS DE PROCESSO D'INFORMACIÓ | G33: POLIESPORTIU / CAMP DE FUTBOL RIPOLLET
A34: ARMARIS RACK | B34: 2007-12-31 | C34: 1000 | D34: 0 | E34: 1000 | F34: 147 - MOBILIARI | G34: POLIESPORTIU / CAMP DE FUTBOL RIPOLLET
A35: MINI CADENA | B35: 2007-12-31 | C35: 100 | D35: 0 | E35: 100 | F35: 147 - MOBILIARI | G35: POLIESPORTIU / CAMP DE FUTBOL RIPOLLET
A36: ARMARIS | B36: 2007-12-31 | C36: 6200 | D36: 0 | E36: 6200 | F36: 147 - MOBILIARI | G36: POLIESPORTIU / CAMP DE FUTBOL RIPOLLET
A37: QUIOSC TACTIL | B37: 2007-12-31 | C37: 500 | D37: 0 | E37: 500 | F37: 147 - MOBILIARI | G37: POLIESPORTIU / CAMP DE FUTBOL RIPOLLET
A38: LECTOR EMPREMTA DIGITAL | B38: 2007-12-31 | C38: 160 | D38: 0 | E38: 160 | F38: 147 - MOBILIARI | G38: POLIESPORTIU / CAMP DE FUTBOL RIPOLLET
A39: EXPOSITORS | B39: 2007-12-31 | C39: 120 | D39: 0 | E39: 120 | F39: 147 - MOBILIARI | G39: POLIESPORTIU / CAMP DE FUTBOL RIPOLLET
A40: TELEVISOR | B40: 2007-12-31 | C40: 800 | D40: 0 | E40: 800 | F40: 147 - MOBILIARI | G40: POLIESPORTIU / CAMP DE FUTBOL RIPOLLET
A41: PISSARRA | B41: 2007-12-31 | C41: 490 | D41: 0 | E41: 490 | F41: 147 - MOBILIARI | G41: POLIESPORTIU / CAMP DE FUTBOL RIPOLLET
A42: SPLIT | B42: 2007-12-31 | C42: 400 | D42: 0 | E42: 400 | F42: 147 - MOBILIARI | G42: POLIESPORTIU / CAMP DE FUTBOL RIPOLLET
A43: SPLIT | B43: 2007-12-31 | C43: 400 | D43: 0 | E43: 400 | F43: 147 - MOBILIARI | G43: POLIESPORTIU / CAMP DE FUTBOL RIPOLLET
A44: IMPRESSORA MULTIFUNCIO | B44: 2007-12-31 | C44: 500 | D44: 0 | E44: 500 | F44: 131 - EQUIPAMENTS DE PROCESSO D'INFORMACIÓ | G44: POLIESPORTIU / CAMP DE FUTBOL RIPOLLET
A45: DESTRUCTORA DE DOCUMENTS | B45: 2007-12-31 | C45: 180 | D45: 0 | E45: 180 | F45: 147 - MOBILIARI | G45: POLIESPORTIU / CAMP DE FUTBOL RIPOLLET
A46: MONITOR | B46: 2007-12-31 | C46: 90 | D46: 0 | E46: 90 | F46: 131 - EQUIPAMENTS DE PROCESSO D'INFORMACIÓ | G46: POLIESPORTIU / CAMP DE FUTBOL RIPOLLET
A47: PC | B47: 2007-12-31 | C47: 700 | D47: 0 | E47: 700 | F47: 131 - EQUIPAMENTS DE PROCESSO D'INFORMACIÓ | G47: POLIESPORTIU / CAMP DE FUTBOL RIPOLLET
A48: EXPENDEDOR TICKETS | B48: 2007-12-31 | C48: 180 | D48: 0 | E48: 180 | F48: 147 - MOBILIARI | G48: POLIESPORTIU / CAMP DE FUTBOL RIPOLLET
A49: SPLIT | B49: 2007-12-31 | C49: 400 | D49: 0 | E49: 400 | F49: 147 - MOBILIARI | G49: POLIESPORTIU / CAMP DE FUTBOL RIPOLLET
A50: ARXIVADORS | B50: 2007-12-31 | C50: 600 | D50: 0 | E50: 600 | F50: 147 - MOBILIARI | G50: POLIESPORTIU / CAMP DE FUTBOL RIPOLLET
A51: IMPRESSORA | B51: 2007-12-31 | C51: 380 | D51: 0 | E51: 380 | F51: 131 - EQUIPAMENTS DE PROCESSO D'INFORMACIÓ | G51: POLIESPORTIU / CAMP DE FUTBOL RIPOLLET
A52: SWITCH | B52: 2007-12-31 | C52: 50 | D52: 0 | E52: 50 | F52: 131 - EQUIPAMENTS DE PROCESSO D'INFORMACIÓ | G52: POLIESPORTIU / CAMP DE FUTBOL RIPOLLET
A53: PC | B53: 2007-12-31 | C53: 700 | D53: 0 | E53: 700 | F53: 131 - EQUIPAMENTS DE PROCESSO D'INFORMACIÓ | G53: POLIESPORTIU / CAMP DE FUTBOL RIPOLLET
A54: MONITOR | B54: 2007-12-31 | C54: 90 | D54: 0 | E54: 90 | F54: 131 - EQUIPAMENTS DE PROCESSO D'INFORMACIÓ | G54: POLIESPORTIU / CAMP DE FUTBOL RIPOLLET
A55: PC | B55: 2007-12-31 | C55: 700 | D55: 0 | E55: 700 | F55: 131 - EQUIPAMENTS DE PROCESSO D'INFORMACIÓ | G55: POLIESPORTIU / CAMP DE FUTBOL RIPOLLET
A56: MONITOR | B56: 2007-12-31 | C56: 90 | D56: 0 | E56: 90 | F56: 131 - EQUIPAMENTS DE PROCESSO D'INFORMACIÓ | G56: POLIESPORTIU / CAMP DE FUTBOL RIPOLLET
A57: PC | B57: 2007-12-31 | C57: 700 | D57: 0 | E57: 700 | F57: 131 - EQUIPAMENTS DE PROCESSO D'INFORMACIÓ | G57: POLIESPORTIU / CAMP DE FUTBOL RIPOLLET
A58: MONITOR | B58: 2007-12-31 | C58: 90 | D58: 0 | E58: 90 | F58: 131 - EQUIPAMENTS DE PROCESSO D'INFORMACIÓ | G58: POLIESPORTIU / CAMP DE FUTBOL RIPOLLET
A59: PC | B59: 2007-12-31 | C59: 700 | D59: 0 | E59: 700 | F59: 131 - EQUIPAMENTS DE PROCESSO D'INFORMACIÓ | G59: POLIESPORTIU / CAMP DE FUTBOL RIPOLLET
A60: MONITOR | B60: 2007-12-31 | C60: 90 | D60: 0 | E60: 90 | F60: 131 - EQUIPAMENTS DE PROCESSO D'INFORMACIÓ | G60: POLIESPORTIU / CAMP DE FUTBOL RIPOLLET
A61: PC | B61: 2007-12-31 | C61: 700 | D61: 0 | E61: 700 | F61: 131 - EQUIPAMENTS DE PROCESSO D'INFORMACIÓ | G61: POLIESPORTIU / CAMP DE FUTBOL RIPOLLET
A62: MONITOR | B62: 2007-12-31 | C62: 90 | D62: 0 | E62: 90 | F62: 131 - EQUIPAMENTS DE PROCESSO D'INFORMACIÓ | G62: POLIESPORTIU / CAMP DE FUTBOL RIPOLLET
A63: NEVERA | B63: 2007-12-31 | C63: 400 | D63: 0 | E63: 400 | F63: 147 - MOBILIARI | G63: POLIESPORTIU / CAMP DE FUTBOL RIPOLLET
A64: PLASTIFICADORA | B64: 2007-12-31 | C64: 70 | D64: 0 | E64: 70 | F64: 147 - MOBILIARI | G64: POLIESPORTIU / CAMP DE FUTBOL RIPOLLET
A65: CISSALLA | B65: 2007-12-31 | C65: 360 | D65: 0 | E65: 360 | F65: 147 - MOBILIARI | G65: POLIESPORTIU / CAMP DE FUTBOL RIPOLLET
A66: ENQUADERNADORA | B66: 2007-12-31 | C66: 80 | D66: 0 | E66: 80 | F66: 147 - MOBILIARI | G66: POLIESPORTIU / CAMP DE FUTBOL RIPOLLET
A67: PC | B67: 2007-12-31 | C67: 700 | D67: 0 | E67: 700 | F67: 131 - EQUIPAMENTS DE PROCESSO D'INFORMACIÓ | G67: POLIESPORTIU / CAMP DE FUTBOL RIPOLLET
A68: MONITOR | B68: 2007-12-31 | C68: 90 | D68: 0 | E68: 90 | F68: 131 - EQUIPAMENTS DE PROCESSO D'INFORMACIÓ | G68: POLIESPORTIU / CAMP DE FUTBOL RIPOLLET
A69: IMPRESSORA | B69: 2007-12-31 | C69: 380 | D69: 0 | E69: 380 | F69: 131 - EQUIPAMENTS DE PROCESSO D'INFORMACIÓ | G69: POLIESPORTIU / CAMP DE FUTBOL RIPOLLET
A70: SPLIT | B70: 2007-12-31 | C70: 400 | D70: 0 | E70: 400 | F70: 147 - MOBILIARI | G70: POLIESPORTIU / CAMP DE FUTBOL RIPOLLET
A71: MONITOR | B71: 2007-12-31 | C71: 90 | D71: 0 | E71: 90 | F71: 131 - EQUIPAMENTS DE PROCESSO D'INFORMACIÓ | G71: POLIESPORTIU / CAMP DE FUTBOL RIPOLLET
A72: COMPRESSOR AIRE | B72: 2007-12-31 | C72: 350 | D72: 0 | E72: 350 | F72: 135 - MAQUINÀRIA I INSTAL·LACIONS TÈCNIQUES | G72: POLIESPORTIU / CAMP DE FUTBOL RIPOLLET
A73: SPLIT | B73: 2007-12-31 | C73: 400 | D73: 0 | E73: 400 | F73: 147 - MOBILIARI | G73: POLIESPORTIU / CAMP DE FUTBOL RIPOLLET
A74: PC | B74: 2007-12-31 | C74: 700 | D74: 0 | E74: 700 | F74: 131 - EQUIPAMENTS DE PROCESSO D'INFORMACIÓ | G74: POLIESPORTIU / CAMP DE FUTBOL RIPOLLET
A75: MONITOR | B75: 2007-12-31 | C75: 90 | D75: 0 | E75: 90 | F75: 131 - EQUIPAMENTS DE PROCESSO D'INFORMACIÓ | G75: POLIESPORTIU / CAMP DE FUTBOL RIPOLLET
A76: PC | B76: 2007-12-31 | C76: 700 | D76: 0 | E76: 700 | F76: 131 - EQUIPAMENTS DE PROCESSO D'INFORMACIÓ | G76: POLIESPORTIU / CAMP DE FUTBOL RIPOLLET
A77: MONITOR | B77: 2007-12-31 | C77: 90 | D77: 0 | E77: 90 | F77: 131 - EQUIPAMENTS DE PROCESSO D'INFORMACIÓ | G77: POLIESPORTIU / CAMP DE FUTBOL RIPOLLET
A78: CAIXA FORTA | B78: 2007-12-31 | C78: 200 | D78: 0 | E78: 200 | F78: 147 - MOBILIARI | G78: POLIESPORTIU / CAMP DE FUTBOL RIPOLLET
A79: SAI | B79: 2007-12-31 | C79: 190 | D79: 0 | E79: 190 | F79: 147 - MOBILIARI | G79: POLIESPORTIU / CAMP DE FUTBOL RIPOLLET
A80: SERVIDOR | B80: 2007-12-31 | C80: 300 | D80: 0 | E80: 300 | F80: 131 - EQUIPAMENTS DE PROCESSO D'INFORMACIÓ | G80: POLIESPORTIU / CAMP DE FUTBOL RIPOLLET
A81: SERVIDOR | B81: 2007-12-31 | C81: 300 | D81: 0 | E81: 300 | F81: 131 - EQUIPAMENTS DE PROCESSO D'INFORMACIÓ | G81: POLIESPORTIU / CAMP DE FUTBOL RIPOLLET
A82: MONITOR | B82: 2007-12-31 | C82: 90 | D82: 0 | E82: 90 | F82: 131 - EQUIPAMENTS DE PROCESSO D'INFORMACIÓ | G82: POLIESPORTIU / CAMP DE FUTBOL RIPOLLET
A83: SPLIT | B83: 2007-12-31 | C83: 400 | D83: 0 | E83: 400 | F83: 147 - MOBILIARI | G83: POLIESPORTIU / CAMP DE FUTBOL RIPOLLET
A84: ESCALES | B84: 2007-12-31 | C84: 130 | D84: 0 | E84: 130 | F84: 147 - MOBILIARI | G84: POLIESPORTIU / CAMP DE FUTBOL RIPOLLET
A85: SPLIT | B85: 2007-12-31 | C85: 400 | D85: 0 | E85: 400 | F85: 147 - MOBILIARI | G85: POLIESPORTIU / CAMP DE FUTBOL RIPOLLET
A86: PC | B86: 2007-12-31 | C86: 700 | D86: 0 | E86: 700 | F86: 131 - EQUIPAMENTS DE PROCESSO D'INFORMACIÓ | G86: POLIESPORTIU / CAMP DE FUTBOL RIPOLLET
A87: MONITOR | B87: 2007-12-31 | C87: 90 | D87: 0 | E87: 90 | F87: 131 - EQUIPAMENTS DE PROCESSO D'INFORMACIÓ | G87: POLIESPORTIU / CAMP DE FUTBOL RIPOLLET
A88: PC | B88: 2007-12-31 | C88: 700 | D88: 0 | E88: 700 | F88: 131 - EQUIPAMENTS DE PROCESSO D'INFORMACIÓ | G88: POLIESPORTIU / CAMP DE FUTBOL RIPOLLET
A89: MONITOR | B89: 2007-12-31 | C89: 90 | D89: 0 | E89: 90 | F89: 131 - EQUIPAMENTS DE PROCESSO D'INFORMACIÓ | G89: POLIESPORTIU / CAMP DE FUTBOL RIPOLLET
A90: PC | B90: 2007-12-31 | C90: 700 | D90: 0 | E90: 700 | F90: 131 - EQUIPAMENTS DE PROCESSO D'INFORMACIÓ | G90: POLIESPORTIU / CAMP DE FUTBOL RIPOLLET
A91: MONITOR | B91: 2007-12-31 | C91: 90 | D91: 0 | E91: 90 | F91: 131 - EQUIPAMENTS DE PROCESSO D'INFORMACIÓ | G91: POLIESPORTIU / CAMP DE FUTBOL RIPOLLET
A92: ESCANER | B92: 2007-12-31 | C92: 150 | D92: 0 | E92: 150 | F92: 131 - EQUIPAMENTS DE PROCESSO D'INFORMACIÓ | G92: POLIESPORTIU / CAMP DE FUTBOL RIPOLLET
A93: MICROONES | B93: 2007-12-31 | C93: 70 | D93: 0 | E93: 70 | F93: 147 - MOBILIARI | G93: POLIESPORTIU / CAMP DE FUTBOL RIPOLLET
A94: IMPRESSORA | B94: 2007-12-31 | C94: 380 | D94: 0 | E94: 380 | F94: 131 - EQUIPAMENTS DE PROCESSO D'INFORMACIÓ | G94: POLIESPORTIU / CAMP DE FUTBOL RIPOLLET
A95: SERVIDOR | B95: 2007-12-31 | C95: 300 | D95: 0 | E95: 300 | F95: 131 - EQUIPAMENTS DE PROCESSO D'INFORMACIÓ | G95: POLIESPORTIU / CAMP DE FUTBOL RIPOLLET
A96: SWITCH | B96: 2007-12-31 | C96: 50 | D96: 0 | E96: 50 | F96: 131 - EQUIPAMENTS DE PROCESSO D'INFORMACIÓ | G96: POLIESPORTIU / CAMP DE FUTBOL RIPOLLET
A97: CAIXA ENREGISTRADORA | B97: 2007-12-31 | C97: 400 | D97: 0 | E97: 400 | F97: 147 - MOBILIARI | G97: POLIESPORTIU / CAMP DE FUTBOL RIPOLLET
A98: SPLIT | B98: 2007-12-31 | C98: 400 | D98: 0 | E98: 400 | F98: 147 - MOBILIARI | G98: POLIESPORTIU / CAMP DE FUTBOL RIPOLLET
A99: IMPRESSORA | B99: 2007-12-31 | C99: 380 | D99: 0 | E99: 380 | F99: 131 - EQUIPAMENTS DE PROCESSO D'INFORMACIÓ | G99: POLIESPORTIU / CAMP DE FUTBOL RIPOLLET
A100: TELEVISOR | B100: 2007-12-31 | C100: 800 | D100: 0 | E100: 800 | F100: 147 - MOBILIARI | G100: POLIESPORTIU / CAMP DE FUTBOL RIPOLLET
A101: PC | B101: 2007-12-31 | C101: 700 | D101: 0 | E101: 700 | F101: 131 - EQUIPAMENTS DE PROCESSO D'INFORMACIÓ | G101: POLIESPORTIU / CAMP DE FUTBOL RIPOLLET
A102: MONITOR | B102: 2007-12-31 | C102: 90 | D102: 0 | E102: 90 | F102: 131 - EQUIPAMENTS DE PROCESSO D'INFORMACIÓ | G102: POLIESPORTIU / CAMP DE FUTBOL RIPOLLET
A103: IMPRESSORA TICKETS | B103: 2007-12-31 | C103: 250 | D103: 0 | E103: 250 | F103: 131 - EQUIPAMENTS DE PROCESSO D'INFORMACIÓ | G103: POLIESPORTIU / CAMP DE FUTBOL RIPOLLET
A104: ORDINADOR PORTATIL | B104: 2007-12-31 | C104: 600 | D104: 0 | E104: 600 | F104: 131 - EQUIPAMENTS DE PROCESSO D'INFORMACIÓ | G104: POLIESPORTIU / CAMP DE FUTBOL RIPOLLET
A105: SPLIT | B105: 2007-12-31 | C105: 400 | D105: 0 | E105: 400 | F105: 147 - MOBILIARI | G105: POLIESPORTIU / CAMP DE FUTBOL RIPOLLET
A106: PANTALLA DE PROJECCIÓ | B106: 2007-12-31 | C106: 90 | D106: 0 | E106: 90 | F106: 147 - MOBILIARI | G106: POLIESPORTIU / CAMP DE FUTBOL RIPOLLET
A107: SPLIT | B107: 2007-12-31 | C107: 400 | D107: 0 | E107: 400 | F107: 147 - MOBILIARI | G107: POLIESPORTIU / CAMP DE FUTBOL RIPOLLET
A108: PORTERIES PETITES | B108: 2007-12-31 | C108: 1800 | D108: 0 | E108: 1800 | F108: 147 - MOBILIARI | G108: POLIESPORTIU / CAMP DE FUTBOL RIPOLLET
A109: PC | B109: 2007-12-31 | C109: 700 | D109: 0 | E109: 700 | F109: 131 - EQUIPAMENTS DE PROCESSO D'INFORMACIÓ | G109: POLIESPORTIU / CAMP DE FUTBOL RIPOLLET
A110: MONITOR | B110: 2007-12-31 | C110: 90 | D110: 0 | E110: 90 | F110: 131 - EQUIPAMENTS DE PROCESSO D'INFORMACIÓ | G110: POLIESPORTIU / CAMP DE FUTBOL RIPOLLET
A111: IMPRESSORA | B111: 2007-12-31 | C111: 380 | D111: 0 | E111: 380 | F111: 131 - EQUIPAMENTS DE PROCESSO D'INFORMACIÓ | G111: POLIESPORTIU / CAMP DE FUTBOL RIPOLLET
A112: MONITOR | B112: 2007-12-31 | C112: 90 | D112: 0 | E112: 90 | F112: 131 - EQUIPAMENTS DE PROCESSO D'INFORMACIÓ | G112: POLIESPORTIU / CAMP DE FUTBOL RIPOLLET
A113: PC | B113: 2007-12-31 | C113: 700 | D113: 0 | E113: 700 | F113: 131 - EQUIPAMENTS DE PROCESSO D'INFORMACIÓ | G113: POLIESPORTIU / CAMP DE FUTBOL RIPOLLET
A114: MONITOR | B114: 2007-12-31 | C114: 90 | D114: 0 | E114: 90 | F114: 131 - EQUIPAMENTS DE PROCESSO D'INFORMACIÓ | G114: POLIESPORTIU / CAMP DE FUTBOL RIPOLLET
A115: MONITOR | B115: 2007-12-31 | C115: 90 | D115: 0 | E115: 90 | F115: 131 - EQUIPAMENTS DE PROCESSO D'INFORMACIÓ | G115: POLIESPORTIU / CAMP DE FUTBOL RIPOLLET
A116: PC | B116: 2007-12-31 | C116: 700 | D116: 0 | E116: 700 | F116: 131 - EQUIPAMENTS DE PROCESSO D'INFORMACIÓ | G116: POLIESPORTIU / CAMP DE FUTBOL RIPOLLET
A117: IMPRESSORA | B117: 2007-12-31 | C117: 380 | D117: 0 | E117: 380 | F117: 131 - EQUIPAMENTS DE PROCESSO D'INFORMACIÓ | G117: POLIESPORTIU / CAMP DE FUTBOL RIPOLLET
A118: SWITCH | B118: 2007-12-31 | C118: 50 | D118: 0 | E118: 50 | F118: 131 - EQUIPAMENTS DE PROCESSO D'INFORMACIÓ | G118: POLIESPORTIU / CAMP DE FUTBOL RIPOLLET
A119: SWITCH | B119: 2007-12-31 | C119: 50 | D119: 0 | E119: 50 | F119: 131 - EQUIPAMENTS DE PROCESSO D'INFORMACIÓ | G119: POLIESPORTIU / CAMP DE FUTBOL RIPOLLET
A120: SAI | B120: 2007-12-31 | C120: 190 | D120: 0 | E120: 190 | F120: 147 - MOBILIARI | G120: POLIESPORTIU / CAMP DE FUTBOL RIPOLLET
A121: GRAVADORA CAMARA | B121: 2007-12-31 | C121: 300 | D121: 0 | E121: 300 | F121: 147 - MOBILIARI | G121: POLIESPORTIU / CAMP DE FUTBOL RIPOLLET
A122: MARTELL PNEUMATIC | B122: 2007-12-31 | C122: 400 | D122: 0 | E122: 400 | F122: 135 - MAQUINÀRIA I INSTAL·LACIONS TÈCNIQUES | G122: POLIESPORTIU / CAMP DE FUTBOL RIPOLLET
A123: TALLADORA CERAMICA | B123: 2007-12-31 | C123: 250 | D123: 0 | E123: 250 | F123: 135 - MAQUINÀRIA I INSTAL·LACIONS TÈCNIQUES | G123: POLIESPORTIU / CAMP DE FUTBOL RIPOLLET
A124: TOSTADORA | B124: 2007-12-31 | C124: 30 | D124: 0 | E124: 30 | F124: 147 - MOBILIARI | G124: POLIESPORTIU / CAMP DE FUTBOL RIPOLLET
A125: TRACTOR | B125: 2007-12-31 | C125: 7500 | D125: 0 | E125: 7500 | F125: 135 - MAQUINÀRIA I INSTAL·LACIONS TÈCNIQUES | G125: POLIESPORTIU / CAMP DE FUTBOL RIPOLLET
A126: FORMIGONERA | B126: 2007-12-31 | C126: 1500 | D126: 0 | E126: 1500 | F126: 135 - MAQUINÀRIA I INSTAL·LACIONS TÈCNIQUES | G126: POLIESPORTIU / CAMP DE FUTBOL RIPOLLET
A127: FORMIGONERA | B127: 2007-12-31 | C127: 1500 | D127: 0 | E127: 1500 | F127: 135 - MAQUINÀRIA I INSTAL·LACIONS TÈCNIQUES | G127: POLIESPORTIU / CAMP DE FUTBOL RIPOLLET
A128: SOLDADOR ELECTRIC | B128: 2007-12-31 | C128: 700 | D128: 0 | E128: 700 | F128: 135 - MAQUINÀRIA I INSTAL·LACIONS TÈCNIQUES | G128: POLIESPORTIU / CAMP DE FUTBOL RIPOLLET
A129: TRONZADORA | B129: 2007-12-31 | C129: 500 | D129: 0 | E129: 500 | F129: 135 - MAQUINÀRIA I INSTAL·LACIONS TÈCNIQUES | G129: POLIESPORTIU / CAMP DE FUTBOL RIPOLLET
A130: MOTOR | B130: 2007-12-31 | C130: 250 | D130: 0 | E130: 250 | F130: 135 - MAQUINÀRIA I INSTAL·LACIONS TÈCNIQUES | G130: POLIESPORTIU / CAMP DE FUTBOL RIPOLLET
A131: MOLADORA | B131: 2007-12-31 | C131: 400 | D131: 0 | E131: 400 | F131: 135 - MAQUINÀRIA I INSTAL·LACIONS TÈCNIQUES | G131: POLIESPORTIU / CAMP DE FUTBOL RIPOLLET
A132: TALADRE DE PEU | B132: 2007-12-31 | C132: 220 | D132: 0 | E132: 220 | F132: 135 - MAQUINÀRIA I INSTAL·LACIONS TÈCNIQUES | G132: POLIESPORTIU / CAMP DE FUTBOL RIPOLLET
A133: MOLADORA | B133: 2007-12-31 | C133: 400 | D133: 0 | E133: 400 | F133: 135 - MAQUINÀRIA I INSTAL·LACIONS TÈCNIQUES | G133: POLIESPORTIU / CAMP DE FUTBOL RIPOLLET
A134: ROBOT NETEJA PISCINES | B134: 2007-12-31 | C134: 550 | D134: 0 | E134: 550 | F134: 135 - MAQUINÀRIA I INSTAL·LACIONS TÈCNIQUES | G134: POLIESPORTIU / CAMP DE FUTBOL RIPOLLET
A135: ROBOT NETEJA PISCINES | B135: 2007-12-31 | C135: 550 | D135: 0 | E135: 550 | F135: 135 - MAQUINÀRIA I INSTAL·LACIONS TÈCNIQUES | G135: POLIESPORTIU / CAMP DE FUTBOL RIPOLLET
A136: ROBOT NETEJA PISCINES | B136: 2007-12-31 | C136: 550 | D136: 0 | E136: 550 | F136: 135 - MAQUINÀRIA I INSTAL·LACIONS TÈCNIQUES | G136: POLIESPORTIU / CAMP DE FUTBOL RIPOLLET
A137: ROBOT NETEJA PISCINES | B137: 2007-12-31 | C137: 550 | D137: 0 | E137: 550 | F137: 135 - MAQUINÀRIA I INSTAL·LACIONS TÈCNIQUES | G137: POLIESPORTIU / CAMP DE FUTBOL RIPOLLET
A138: MESURADOR AIRE | B138: 2007-12-31 | C138: 15 | D138: 0 | E138: 15 | F138: 135 - MAQUINÀRIA I INSTAL·LACIONS TÈCNIQUES | G138: POLIESPORTIU / CAMP DE FUTBOL RIPOLLET
A139: MESURADOR AIGUA | B139: 2007-12-31 | C139: 10 | D139: 0 | E139: 10 | F139: 135 - MAQUINÀRIA I INSTAL·LACIONS TÈCNIQUES | G139: POLIESPORTIU / CAMP DE FUTBOL RIPOLLET
A140: MARCADOR | B140: 2007-12-31 | C140: 3000 | D140: 0 | E140: 3000 | F140: 147 - MOBILIARI | G140: POLIESPORTIU / CAMP DE FUTBOL RIPOLLET
A141: PORTERIES | B141: 2007-12-31 | C141: 1200 | D141: 0 | E141: 1200 | F141: 147 - MOBILIARI | G141: POLIESPORTIU / CAMP DE FUTBOL RIPOLLET
A142: XARXES TENIS | B142: 2007-12-31 | C142: 720 | D142: 0 | E142: 720 | F142: 147 - MOBILIARI | G142: POLIESPORTIU / CAMP DE FUTBOL RIPOLLET
A143: CANASTES BASQUET | B143: 2007-12-31 | C143: 3200 | D143: 0 | E143: 3200 | F143: 147 - MOBILIARI | G143: POLIESPORTIU / CAMP DE FUTBOL RIPOLLET
A144: XARXES PADEL | B144: 2007-12-31 | C144: 320 | D144: 0 | E144: 320 | F144: 147 - MOBILIARI | G144: POLIESPORTIU / CAMP DE FUTBOL RIPOLLET
A145: PORTERIES FUTBOL SALA | B145: 2007-12-31 | C145: 1600 | D145: 0 | E145: 1600 | F145: 147 - MOBILIARI | G145: POLIESPORTIU / CAMP DE FUTBOL RIPOLLET
A146: COLCHONETA | B146: 2007-12-31 | C146: 360 | D146: 0 | E146: 360 | F146: 147 - MOBILIARI | G146: POLIESPORTIU / CAMP DE FUTBOL RIPOLLET
A147: ARMARIETS | B147: 2007-12-31 | C147: 81400 | D147: 0 | E147: 81400 | F147: 147 - MOBILIARI | G147: POLIESPORTIU / CAMP DE FUTBOL RIPOLLET
A148: PC | B148: 2007-12-31 | C148: 700 | D148: 0 | E148: 700 | F148: 131 - EQUIPAMENTS DE PROCESSO D'INFORMACIÓ | G148: POLIESPORTIU / CAMP DE FUTBOL RIPOLLET
A149: MONITOR | B149: 2007-12-31 | C149: 90 | D149: 0 | E149: 90 | F149: 131 - EQUIPAMENTS DE PROCESSO D'INFORMACIÓ | G149: POLIESPORTIU / CAMP DE FUTBOL RIPOLLET
A150: CINTA CORRER | B150: 2007-12-31 | C150: 1900 | D150: 0 | E150: 1900 | F150: 147 - MOBILIARI | G150: POLIESPORTIU / CAMP DE FUTBOL RIPOLLET
A151: CINTA CORRER | B151: 2007-12-31 | C151: 1900 | D151: 0 | E151: 1900 | F151: 147 - MOBILIARI | G151: POLIESPORTIU / CAMP DE FUTBOL RIPOLLET
A152: CINTA CORRER | B152: 2007-12-31 | C152: 1900 | D152: 0 | E152: 1900 | F152: 147 - MOBILIARI | G152: POLIESPORTIU / CAMP DE FUTBOL RIPOLLET
A153: CINTA CORRER | B153: 2007-12-31 | C153: 1900 | D153: 0 | E153: 1900 | F153: 147 - MOBILIARI | G153: POLIESPORTIU / CAMP DE FUTBOL RIPOLLET
A154: CINTA CORRER | B154: 2007-12-31 | C154: 1900 | D154: 0 | E154: 1900 | F154: 147 - MOBILIARI | G154: POLIESPORTIU / CAMP DE FUTBOL RIPOLLET
A155: REM | B155: 2007-12-31 | C155: 1400 | D155: 0 | E155: 1400 | F155: 147 - MOBILIARI | G155: POLIESPORTIU / CAMP DE FUTBOL RIPOLLET
A156: STEPS | B156: 2007-12-31 | C156: 300 | D156: 0 | E156: 300 | F156: 147 - MOBILIARI | G156: POLIESPORTIU / CAMP DE FUTBOL RIPOLLET
A157: STEPS | B157: 2007-12-31 | C157: 300 | D157: 0 | E157: 300 | F157: 147 - MOBILIARI | G157: POLIESPORTIU / CAMP DE FUTBOL RIPOLLET
A158: STEPS | B158: 2007-12-31 | C158: 300 | D158: 0 | E158: 300 | F158: 147 - MOBILIARI | G158: POLIESPORTIU / CAMP DE FUTBOL RIPOLLET
A159: ELIPTICA | B159: 2007-12-31 | C159: 1900 | D159: 0 | E159: 1900 | F159: 147 - MOBILIARI | G159: POLIESPORTIU / CAMP DE FUTBOL RIPOLLET
A160: ELIPTICA | B160: 2007-12-31 | C160: 1900 | D160: 0 | E160: 1900 | F160: 147 - MOBILIARI | G160: POLIESPORTIU / CAMP DE FUTBOL RIPOLLET
A161: REM | B161: 2007-12-31 | C161: 1400 | D161: 0 | E161: 1400 | F161: 147 - MOBILIARI | G161: POLIESPORTIU / CAMP DE FUTBOL RIPOLLET
A162: REM | B162: 2007-12-31 | C162: 1400 | D162: 0 | E162: 1400 | F162: 147 - MOBILIARI | G162: POLIESPORTIU / CAMP DE FUTBOL RIPOLLET
A163: MAQUINA PECTORALS | B163: 2007-12-31 | C163: 2050 | D163: 0 | E163: 2050 | F163: 147 - MOBILIARI | G163: POLIESPORTIU / CAMP DE FUTBOL RIPOLLET
A164: MAQUINA ESPATLLA | B164: 2007-12-31 | C164: 2050 | D164: 0 | E164: 2050 | F164: 147 - MOBILIARI | G164: POLIESPORTIU / CAMP DE FUTBOL RIPOLLET
A165: MAQUINA | B165: 2007-12-31 | C165: 1500 | D165: 0 | E165: 1500 | F165: 147 - MOBILIARI | G165: POLIESPORTIU / CAMP DE FUTBOL RIPOLLET
A166: MAQUINA PECTORALS | B166: 2007-12-31 | C166: 2050 | D166: 0 | E166: 2050 | F166: 147 - MOBILIARI | G166: POLIESPORTIU / CAMP DE FUTBOL RIPOLLET
A167: MAQUINA PESES | B167: 2007-12-31 | C167: 1600 | D167: 0 | E167: 1600 | F167: 147 - MOBILIARI | G167: POLIESPORTIU / CAMP DE FUTBOL RIPOLLET
A168: MAQUINA PESES | B168: 2007-12-31 | C168: 1600 | D168: 0 | E168: 1600 | F168: 147 - MOBILIARI | G168: POLIESPORTIU / CAMP DE FUTBOL RIPOLLET
A169: MAQUINA PESES | B169: 2007-12-31 | C169: 1600 | D169: 0 | E169: 1600 | F169: 147 - MOBILIARI | G169: POLIESPORTIU / CAMP DE FUTBOL RIPOLLET
A170: BANC PESES | B170: 2007-12-31 | C170: 800 | D170: 0 | E170: 800 | F170: 147 - MOBILIARI | G170: POLIESPORTIU / CAMP DE FUTBOL RIPOLLET
A171: BANC ABDOMINALS | B171: 2007-12-31 | C171: 300 | D171: 0 | E171: 300 | F171: 147 - MOBILIARI | G171: POLIESPORTIU / CAMP DE FUTBOL RIPOLLET
A172: BANC PESES | B172: 2007-12-31 | C172: 800 | D172: 0 | E172: 800 | F172: 147 - MOBILIARI | G172: POLIESPORTIU / CAMP DE FUTBOL RIPOLLET
A173: BANC PESES | B173: 2007-12-31 | C173: 800 | D173: 0 | E173: 800 | F173: 147 - MOBILIARI | G173: POLIESPORTIU / CAMP DE FUTBOL RIPOLLET
A174: BANC PESES | B174: 2007-12-31 | C174: 800 | D174: 0 | E174: 800 | F174: 147 - MOBILIARI | G174: POLIESPORTIU / CAMP DE FUTBOL RIPOLLET
A175: BANC PESES | B175: 2007-12-31 | C175: 800 | D175: 0 | E175: 800 | F175: 147 - MOBILIARI | G175: POLIESPORTIU / CAMP DE FUTBOL RIPOLLET
A176: BANC PESES | B176: 2007-12-31 | C176: 800 | D176: 0 | E176: 800 | F176: 147 - MOBILIARI | G176: POLIESPORTIU / CAMP DE FUTBOL RIPOLLET
A177: BANC PESES | B177: 2007-12-31 | C177: 800 | D177: 0 | E177: 800 | F177: 147 - MOBILIARI | G177: POLIESPORTIU / CAMP DE FUTBOL RIPOLLET
A178: MAQUINA | B178: 2007-12-31 | C178: 1500 | D178: 0 | E178: 1500 | F178: 147 - MOBILIARI | G178: POLIESPORTIU / CAMP DE FUTBOL RIPOLLET
A179: MAQUINA DORSAL | B179: 2007-12-31 | C179: 2100 | D179: 0 | E179: 2100 | F179: 147 - MOBILIARI | G179: POLIESPORTIU / CAMP DE FUTBOL RIPOLLET
A180: MAQUINA DORSAL | B180: 2007-12-31 | C180: 2100 | D180: 0 | E180: 2100 | F180: 147 - MOBILIARI | G180: POLIESPORTIU / CAMP DE FUTBOL RIPOLLET
A181: BANC PESES CAMES | B181: 2007-12-31 | C181: 1000 | D181: 0 | E181: 1000 | F181: 147 - MOBILIARI | G181: POLIESPORTIU / CAMP DE FUTBOL RIPOLLET
A182: MAQUINA CAMES | B182: 2007-12-31 | C182: 1700 | D182: 0 | E182: 1700 | F182: 147 - MOBILIARI | G182: POLIESPORTIU / CAMP DE FUTBOL RIPOLLET
A183: MAQUINA CAMES | B183: 2007-12-31 | C183: 1700 | D183: 0 | E183: 1700 | F183: 147 - MOBILIARI | G183: POLIESPORTIU / CAMP DE FUTBOL RIPOLLET
A184: MAQUINA CAMES | B184: 2007-12-31 | C184: 1700 | D184: 0 | E184: 1700 | F184: 147 - MOBILIARI | G184: POLIESPORTIU / CAMP DE FUTBOL RIPOLLET
A185: MAQUINA CAMES | B185: 2007-12-31 | C185: 1700 | D185: 0 | E185: 1700 | F185: 147 - MOBILIARI | G185: POLIESPORTIU / CAMP DE FUTBOL RIPOLLET
A186: FONT D'AIGUA | B186: 2007-12-31 | C186: 500 | D186: 0 | E186: 500 | F186: 147 - MOBILIARI | G186: POLIESPORTIU / CAMP DE FUTBOL RIPOLLET
A187: MAQUINA CAMES | B187: 2007-12-31 | C187: 1700 | D187: 0 | E187: 1700 | F187: 147 - MOBILIARI | G187: POLIESPORTIU / CAMP DE FUTBOL RIPOLLET
A188: MAQUINA CAMES | B188: 2007-12-31 | C188: 1700 | D188: 0 | E188: 1700 | F188: 147 - MOBILIARI | G188: POLIESPORTIU / CAMP DE FUTBOL RIPOLLET
A189: BICICLETA ESTATICA | B189: 2007-12-31 | C189: 1800 | D189: 0 | E189: 1800 | F189: 147 - MOBILIARI | G189: POLIESPORTIU / CAMP DE FUTBOL RIPOLLET
A190: BICICLETA ESTATICA | B190: 2007-12-31 | C190: 1800 | D190: 0 | E190: 1800 | F190: 147 - MOBILIARI | G190: POLIESPORTIU / CAMP DE FUTBOL RIPOLLET
A191: BICICLETA ESTATICA | B191: 2007-12-31 | C191: 1800 | D191: 0 | E191: 1800 | F191: 147 - MOBILIARI | G191: POLIESPORTIU / CAMP DE FUTBOL RIPOLLET
A192: BICICLETA ESTATICA | B192: 2007-12-31 | C192: 1800 | D192: 0 | E192: 1800 | F192: 147 - MOBILIARI | G192: POLIESPORTIU / CAMP DE FUTBOL RIPOLLET
A193: BICICLETA ESTATICA | B193: 2007-12-31 | C193: 1800 | D193: 0 | E193: 1800 | F193: 147 - MOBILIARI | G193: POLIESPORTIU / CAMP DE FUTBOL RIPOLLET
A194: BICICLETA ESTATICA | B194: 2007-12-31 | C194: 1800 | D194: 0 | E194: 1800 | F194: 147 - MOBILIARI | G194: POLIESPORTIU / CAMP DE FUTBOL RIPOLLET
A195: BICICLETA SPINING | B195: 2007-12-31 | C195: 1800 | D195: 0 | E195: 1800 | F195: 147 - MOBILIARI | G195: POLIESPORTIU / CAMP DE FUTBOL RIPOLLET
A196: MAQUINA BICEPS | B196: 2007-12-31 | C196: 1600 | D196: 0 | E196: 1600 | F196: 147 - MOBILIARI | G196: POLIESPORTIU / CAMP DE FUTBOL RIPOLLET
A197: MAQUINA CAMES | B197: 2007-12-31 | C197: 1700 | D197: 0 | E197: 1700 | F197: 147 - MOBILIARI | G197: POLIESPORTIU / CAMP DE FUTBOL RIPOLLET
A198: MAQUINA | B198: 2007-12-31 | C198: 1500 | D198: 0 | E198: 1500 | F198: 147 - MOBILIARI | G198: POLIESPORTIU / CAMP DE FUTBOL RIPOLLET
A199: MAQUINA | B199: 2007-12-31 | C199: 1500 | D199: 0 | E199: 1500 | F199: 147 - MOBILIARI | G199: POLIESPORTIU / CAMP DE FUTBOL RIPOLLET
A200: MAQUINA | B200: 2007-12-31 | C200: 1500 | D200: 0 | E200: 1500 | F200: 147 - MOBILIARI | G200: POLIESPORTIU / CAMP DE FUTBOL RIPOLLET
... 113 more rows

Sheet PMC
A1: Descripció del bé | B1: Data adquisició | C1: Valoració | D1: Millores | E1: Total | F1: Família | G1: Ubicació
A2: CASAL JOVES / RÀDIO - RBA. SANT JORDI, 6 - N. URBÀ | B2: 1981-06-03 | C2: 411906.21 | D2: 23225.15 | E2: 435131.36 | F2: 121 - INMOBLES (DOMINI PÚBLIC) | G2: MUNICIPI
A3: TEATRE AUDITORI - PLÇ. 11 SETEMBRE - NUCLI URBÀ | B3: 1918-12-28 | C3: 795770.38 | D3: 145305.5 | E3: 941075.88 | F3: 121 - INMOBLES (DOMINI PÚBLIC) | G3: MUNICIPI
A4: BIBLIOTECA - C/ DE L'ESTACIÓ, 40 - CAN MASACHS | B4: 1995-07-14 | C4: 537699.28 | D4: 527002.65 | E4: 1064701.93 | F4: 121 - INMOBLES (DOMINI PÚBLIC) | G4: MUNICIPI
A5: CENTRE CULTURAL - RBA. SANT JORDI 2,4 - NUCLI URBÀ | B5: 1981-06-03 | C5: 2446327.66 | D5: 198689.21 | E5: 2645016.87 | F5: 121 - INMOBLES (DOMINI PÚBLIC) | G5: MUNICIPI
A6: CENTRE INTERPRETACIÓ PATRIMONI - P. MOLÍ D'EN RATA | B6: 1999-12-23 | C6: 126421.46 | D6: 23225.15 | E6: 149646.61 | F6: 121 - INMOBLES (DOMINI PÚBLIC) | G6: MUNICIPI
A7: TERENY CASAL JOVES / RÀDIO - RBA. SANT JORDI, 6 - N. URBÀ | B7: 1981-06-03 | C7: 47665.5 | D7: 0 | E7: 47665.5 | F7: 121 - INMOBLES (DOMINI PÚBLIC) | G7: MUNICIPI
A8: TERRENY TEATRE AUDITORI - PLÇ. 11 SETEMBRE - NUCLI URBÀ | B8: 1918-12-28 | C8: 46020.75 | D8: 0 | E8: 46020.75 | F8: 121 - INMOBLES (DOMINI PÚBLIC) | G8: MUNICIPI
A9: TERRENY BIBLIOTECA - C/ DE L'ESTACIÓ, 40 - CAN MASACHS | B9: 1995-07-14 | C9: 39990 | D9: 0 | E9: 39990 | F9: 121 - INMOBLES (DOMINI PÚBLIC) | G9: MUNICIPI
A10: TERRENY CENTRE CULTURAL - RBA. SANT JORDI 2,4 - NUCLI URBÀ | B10: 1981-06-03 | C10: 48858.75 | D10: 0 | E10: 48858.75 | F10: 121 - INMOBLES (DOMINI PÚBLIC) | G10: MUNICIPI
A11: TERRENY CENTRE INTERPRETACIÓ PATRIMONI - P. MOLÍ D'EN RATA | B11: 1999-12-23 | C11: 107521.5 | D11: 0 | E11: 107521.5 | F11: 121 - INMOBLES (DOMINI PÚBLIC) | G11: MUNICIPI
A12: CADIRAM | B12: 2007-12-31 | C12: 45600 | D12: 0 | E12: 45600 | F12: 147 - MOBILIARI | G12: BIBLIOTECA MUNICIPAL
A13: TAULES | B13: 2007-12-31 | C13: 9800 | D13: 0 | E13: 9800 | F13: 147 - MOBILIARI | G13: BIBLIOTECA MUNICIPAL
A14: ARMARIS | B14: 2007-12-31 | C14: 17800 | D14: 0 | E14: 17800 | F14: 147 - MOBILIARI | G14: BIBLIOTECA MUNICIPAL
A15: TRANSPORTADOR LLIBRES | B15: 2007-12-31 | C15: 960 | D15: 0 | E15: 960 | F15: 147 - MOBILIARI | G15: BIBLIOTECA MUNICIPAL
A16: MOSTRADOR | B16: 2007-12-31 | C16: 800 | D16: 0 | E16: 800 | F16: 147 - MOBILIARI | G16: BIBLIOTECA MUNICIPAL
A17: BUCS DE CALAIXOS | B17: 2007-12-31 | C17: 560 | D17: 0 | E17: 560 | F17: 147 - MOBILIARI | G17: BIBLIOTECA MUNICIPAL
A18: TELEVISOR | B18: 2007-12-31 | C18: 800 | D18: 0 | E18: 800 | F18: 147 - MOBILIARI | G18: BIBLIOTECA MUNICIPAL
A19: PANTALLA DE PROJECCIÓ | B19: 2007-12-31 | C19: 90 | D19: 0 | E19: 90 | F19: 147 - MOBILIARI | G19: BIBLIOTECA MUNICIPAL
A20: CANO PROJECTOR | B20: 2007-12-31 | C20: 800 | D20: 0 | E20: 800 | F20: 147 - MOBILIARI | G20: BIBLIOTECA MUNICIPAL
A21: BAFLE | B21: 2007-12-31 | C21: 460 | D21: 0 | E21: 460 | F21: 147 - MOBILIARI | G21: BIBLIOTECA MUNICIPAL
A22: BAFLE | B22: 2007-12-31 | C22: 460 | D22: 0 | E22: 460 | F22: 147 - MOBILIARI | G22: BIBLIOTECA MUNICIPAL
A23: PISSARRA | B23: 2007-12-31 | C23: 630 | D23: 0 | E23: 630 | F23: 147 - MOBILIARI | G23: BIBLIOTECA MUNICIPAL
A24: PANTALLA DE PROJECCIÓ | B24: 2007-12-31 | C24: 90 | D24: 0 | E24: 90 | F24: 147 - MOBILIARI | G24: BIBLIOTECA MUNICIPAL
A25: CANO PROJECTOR | B25: 2007-12-31 | C25: 800 | D25: 0 | E25: 800 | F25: 147 - MOBILIARI | G25: BIBLIOTECA MUNICIPAL
A26: BAFLE | B26: 2007-12-31 | C26: 460 | D26: 0 | E26: 460 | F26: 147 - MOBILIARI | G26: BIBLIOTECA MUNICIPAL
A27: BAFLE | B27: 2007-12-31 | C27: 460 | D27: 0 | E27: 460 | F27: 147 - MOBILIARI | G27: BIBLIOTECA MUNICIPAL
A28: ARMARIETS | B28: 2007-12-31 | C28: 2800 | D28: 0 | E28: 2800 | F28: 147 - MOBILIARI | G28: BIBLIOTECA MUNICIPAL
A29: EXPOSITORS | B29: 2007-12-31 | C29: 840 | D29: 0 | E29: 840 | F29: 147 - MOBILIARI | G29: BIBLIOTECA MUNICIPAL
A30: MOBLES REVISTES | B30: 2007-12-31 | C30: 350 | D30: 0 | E30: 350 | F30: 147 - MOBILIARI | G30: BIBLIOTECA MUNICIPAL
A31: REPRODUCTOR CD | B31: 2007-12-31 | C31: 50 | D31: 0 | E31: 50 | F31: 147 - MOBILIARI | G31: BIBLIOTECA MUNICIPAL
A32: AMPLIFICADOR | B32: 2007-12-31 | C32: 300 | D32: 0 | E32: 300 | F32: 147 - MOBILIARI | G32: BIBLIOTECA MUNICIPAL
A33: EQUALITZADOR | B33: 2007-12-31 | C33: 120 | D33: 0 | E33: 120 | F33: 147 - MOBILIARI | G33: BIBLIOTECA MUNICIPAL
A34: AMPLIFICADOR | B34: 2007-12-31 | C34: 300 | D34: 0 | E34: 300 | F34: 147 - MOBILIARI | G34: BIBLIOTECA MUNICIPAL
A35: RECEPTOR MICROFON | B35: 2007-12-31 | C35: 120 | D35: 0 | E35: 120 | F35: 147 - MOBILIARI | G35: BIBLIOTECA MUNICIPAL
A36: MICROFON | B36: 2007-12-31 | C36: 80 | D36: 0 | E36: 80 | F36: 147 - MOBILIARI | G36: BIBLIOTECA MUNICIPAL
A37: MICROFON SOLAPA | B37: 2007-12-31 | C37: 80 | D37: 0 | E37: 80 | F37: 147 - MOBILIARI | G37: BIBLIOTECA MUNICIPAL
A38: MICROFON | B38: 2007-12-31 | C38: 80 | D38: 0 | E38: 80 | F38: 147 - MOBILIARI | G38: BIBLIOTECA MUNICIPAL
A39: IMPRESSORA MULTIFUNCIO | B39: 2007-12-31 | C39: 500 | D39: 0 | E39: 500 | F39: 131 - EQUIPAMENTS DE PROCESSO D'INFORMACIÓ | G39: BIBLIOTECA MUNICIPAL
A40: TELEVISOR | B40: 2007-12-31 | C40: 800 | D40: 0 | E40: 800 | F40: 147 - MOBILIARI | G40: BIBLIOTECA MUNICIPAL
A41: TELEVISOR | B41: 2007-12-31 | C41: 800 | D41: 0 | E41: 800 | F41: 147 - MOBILIARI | G41: BIBLIOTECA MUNICIPAL
A42: AMPLIFICADOR | B42: 2007-12-31 | C42: 300 | D42: 0 | E42: 300 | F42: 147 - MOBILIARI | G42: BIBLIOTECA MUNICIPAL
A43: REPRODUCTOR CD | B43: 2007-12-31 | C43: 50 | D43: 0 | E43: 50 | F43: 147 - MOBILIARI | G43: BIBLIOTECA MUNICIPAL
A44: MICROFON | B44: 2007-12-31 | C44: 80 | D44: 0 | E44: 80 | F44: 147 - MOBILIARI | G44: BIBLIOTECA MUNICIPAL
A45: IMPRESSORA MULTIFUNCIO | B45: 2007-12-31 | C45: 500 | D45: 0 | E45: 500 | F45: 131 - EQUIPAMENTS DE PROCESSO D'INFORMACIÓ | G45: BIBLIOTECA MUNICIPAL
A46: NEVERA | B46: 2007-12-31 | C46: 400 | D46: 0 | E46: 400 | F46: 147 - MOBILIARI | G46: BIBLIOTECA MUNICIPAL
A47: CISSALLA | B47: 2007-12-31 | C47: 360 | D47: 0 | E47: 360 | F47: 147 - MOBILIARI | G47: BIBLIOTECA MUNICIPAL
A48: PLASTIFICADORA | B48: 2007-12-31 | C48: 70 | D48: 0 | E48: 70 | F48: 147 - MOBILIARI | G48: BIBLIOTECA MUNICIPAL
A49: TAULA DE MESCLES | B49: 2007-12-31 | C49: 2500 | D49: 0 | E49: 2500 | F49: 147 - MOBILIARI | G49: BIBLIOTECA MUNICIPAL
A50: REPRODUCTOR CD | B50: 2007-12-31 | C50: 50 | D50: 0 | E50: 50 | F50: 147 - MOBILIARI | G50: BIBLIOTECA MUNICIPAL
A51: PC | B51: 2007-12-31 | C51: 700 | D51: 0 | E51: 700 | F51: 131 - EQUIPAMENTS DE PROCESSO D'INFORMACIÓ | G51: BIBLIOTECA MUNICIPAL
A52: MONITOR | B52: 2007-12-31 | C52: 90 | D52: 0 | E52: 90 | F52: 131 - EQUIPAMENTS DE PROCESSO D'INFORMACIÓ | G52: BIBLIOTECA MUNICIPAL
A53: ARMARIETS | B53: 2007-12-31 | C53: 2800 | D53: 0 | E53: 2800 | F53: 147 - MOBILIARI | G53: BIBLIOTECA MUNICIPAL
A54: AMPLIFICADOR | B54: 2007-12-31 | C54: 300 | D54: 0 | E54: 300 | F54: 147 - MOBILIARI | G54: BIBLIOTECA MUNICIPAL
A55: TAULA DE MESCLES | B55: 2007-12-31 | C55: 2500 | D55: 0 | E55: 2500 | F55: 147 - MOBILIARI | G55: BIBLIOTECA MUNICIPAL
A56: ESCALES | B56: 2007-12-31 | C56: 130 | D56: 0 | E56: 130 | F56: 147 - MOBILIARI | G56: BIBLIOTECA MUNICIPAL
A57: REPRODUCTOR BLURAY | B57: 2007-12-31 | C57: 70 | D57: 0 | E57: 70 | F57: 147 - MOBILIARI | G57: BIBLIOTECA MUNICIPAL
A58: REPRODUCTOR BLURAY | B58: 2007-12-31 | C58: 70 | D58: 0 | E58: 70 | F58: 147 - MOBILIARI | G58: BIBLIOTECA MUNICIPAL
A59: REPRODUCTOR BLURAY | B59: 2007-12-31 | C59: 70 | D59: 0 | E59: 70 | F59: 147 - MOBILIARI | G59: BIBLIOTECA MUNICIPAL
A60: TELEVISOR | B60: 2007-12-31 | C60: 800 | D60: 0 | E60: 800 | F60: 147 - MOBILIARI | G60: BIBLIOTECA MUNICIPAL
A61: REPRODUCTOR CD | B61: 2007-12-31 | C61: 50 | D61: 0 | E61: 50 | F61: 147 - MOBILIARI | G61: BIBLIOTECA MUNICIPAL
A62: TELEVISOR | B62: 2007-12-31 | C62: 800 | D62: 0 | E62: 800 | F62: 147 - MOBILIARI | G62: BIBLIOTECA MUNICIPAL
A63: CADIRAM | B63: 2007-12-31 | C63: 9690 | D63: 0 | E63: 9690 | F63: 147 - MOBILIARI | G63: CASAL DE JOVES
A64: TAULES | B64: 2007-12-31 | C64: 3800 | D64: 0 | E64: 3800 | F64: 147 - MOBILIARI | G64: CASAL DE JOVES
A65: ARMARIS | B65: 2007-12-31 | C65: 6400 | D65: 0 | E65: 6400 | F65: 147 - MOBILIARI | G65: CASAL DE JOVES
A66: MOSTRADOR | B66: 2007-12-31 | C66: 800 | D66: 0 | E66: 800 | F66: 147 - MOBILIARI | G66: CASAL DE JOVES
A67: PISSARRA | B67: 2007-12-31 | C67: 840 | D67: 0 | E67: 840 | F67: 147 - MOBILIARI | G67: CASAL DE JOVES
A68: SPLIT | B68: 2007-12-31 | C68: 400 | D68: 0 | E68: 400 | F68: 147 - MOBILIARI | G68: CASAL DE JOVES
A69: SPLIT | B69: 2007-12-31 | C69: 400 | D69: 0 | E69: 400 | F69: 147 - MOBILIARI | G69: CASAL DE JOVES
A70: PC | B70: 2007-12-31 | C70: 700 | D70: 0 | E70: 700 | F70: 131 - EQUIPAMENTS DE PROCESSO D'INFORMACIÓ | G70: CASAL DE JOVES
A71: MONITOR | B71: 2007-12-31 | C71: 90 | D71: 0 | E71: 90 | F71: 131 - EQUIPAMENTS DE PROCESSO D'INFORMACIÓ | G71: CASAL DE JOVES
A72: IMPRESSORA | B72: 2007-12-31 | C72: 380 | D72: 0 | E72: 380 | F72: 131 - EQUIPAMENTS DE PROCESSO D'INFORMACIÓ | G72: CASAL DE JOVES
A73: MONITOR | B73: 2007-12-31 | C73: 90 | D73: 0 | E73: 90 | F73: 131 - EQUIPAMENTS DE PROCESSO D'INFORMACIÓ | G73: CASAL DE JOVES
A74: PC | B74: 2007-12-31 | C74: 700 | D74: 0 | E74: 700 | F74: 131 - EQUIPAMENTS DE PROCESSO D'INFORMACIÓ | G74: CASAL DE JOVES
A75: MONITOR | B75: 2007-12-31 | C75: 90 | D75: 0 | E75: 90 | F75: 131 - EQUIPAMENTS DE PROCESSO D'INFORMACIÓ | G75: CASAL DE JOVES
A76: PC | B76: 2007-12-31 | C76: 700 | D76: 0 | E76: 700 | F76: 131 - EQUIPAMENTS DE PROCESSO D'INFORMACIÓ | G76: CASAL DE JOVES
A77: MINI CADENA | B77: 2007-12-31 | C77: 100 | D77: 0 | E77: 100 | F77: 147 - MOBILIARI | G77: CASAL DE JOVES
A78: BAFLE | B78: 2007-12-31 | C78: 460 | D78: 0 | E78: 460 | F78: 147 - MOBILIARI | G78: CASAL DE JOVES
A79: FUTBOLIN | B79: 2007-12-31 | C79: 750 | D79: 0 | E79: 750 | F79: 147 - MOBILIARI | G79: CASAL DE JOVES
A80: PANTALLA DE PROJECCIÓ | B80: 2007-12-31 | C80: 90 | D80: 0 | E80: 90 | F80: 147 - MOBILIARI | G80: CASAL DE JOVES
A81: TELEVISOR | B81: 2007-12-31 | C81: 800 | D81: 0 | E81: 800 | F81: 147 - MOBILIARI | G81: CASAL DE JOVES
A82: ESTUFA | B82: 2007-12-31 | C82: 200 | D82: 0 | E82: 200 | F82: 147 - MOBILIARI | G82: CASAL DE JOVES
A83: ESTUFA | B83: 2007-12-31 | C83: 200 | D83: 0 | E83: 200 | F83: 147 - MOBILIARI | G83: CASAL DE JOVES
A84: ESTUFA | B84: 2007-12-31 | C84: 200 | D84: 0 | E84: 200 | F84: 147 - MOBILIARI | G84: CASAL DE JOVES
A85: ESTUFA | B85: 2007-12-31 | C85: 200 | D85: 0 | E85: 200 | F85: 147 - MOBILIARI | G85: CASAL DE JOVES
A86: ESTUFA | B86: 2007-12-31 | C86: 200 | D86: 0 | E86: 200 | F86: 147 - MOBILIARI | G86: CASAL DE JOVES
A87: ESTUFA | B87: 2007-12-31 | C87: 200 | D87: 0 | E87: 200 | F87: 147 - MOBILIARI | G87: CASAL DE JOVES
A88: TAULA DE PING PONG | B88: 2007-12-31 | C88: 300 | D88: 0 | E88: 300 | F88: 147 - MOBILIARI | G88: CASAL DE JOVES
A89: BUCS DE CALAIXOS | B89: 2007-12-31 | C89: 640 | D89: 0 | E89: 640 | F89: 147 - MOBILIARI | G89: CASAL DE JOVES
A90: MINI CADENA | B90: 2007-12-31 | C90: 100 | D90: 0 | E90: 100 | F90: 147 - MOBILIARI | G90: CASAL DE JOVES
A91: PC | B91: 2007-12-31 | C91: 700 | D91: 0 | E91: 700 | F91: 131 - EQUIPAMENTS DE PROCESSO D'INFORMACIÓ | G91: CASAL DE JOVES
A92: MONITOR | B92: 2007-12-31 | C92: 90 | D92: 0 | E92: 90 | F92: 131 - EQUIPAMENTS DE PROCESSO D'INFORMACIÓ | G92: CASAL DE JOVES
A93: PC | B93: 2007-12-31 | C93: 700 | D93: 0 | E93: 700 | F93: 131 - EQUIPAMENTS DE PROCESSO D'INFORMACIÓ | G93: CASAL DE JOVES
A94: MONITOR | B94: 2007-12-31 | C94: 90 | D94: 0 | E94: 90 | F94: 131 - EQUIPAMENTS DE PROCESSO D'INFORMACIÓ | G94: CASAL DE JOVES
A95: SPLIT | B95: 2007-12-31 | C95: 400 | D95: 0 | E95: 400 | F95: 147 - MOBILIARI | G95: CASAL DE JOVES
A96: DESTRUCTORA DE DOCUMENTS | B96: 2007-12-31 | C96: 180 | D96: 0 | E96: 180 | F96: 147 - MOBILIARI | G96: CASAL DE JOVES
A97: MONITOR | B97: 2007-12-31 | C97: 90 | D97: 0 | E97: 90 | F97: 131 - EQUIPAMENTS DE PROCESSO D'INFORMACIÓ | G97: CASAL DE JOVES
A98: PC | B98: 2007-12-31 | C98: 700 | D98: 0 | E98: 700 | F98: 131 - EQUIPAMENTS DE PROCESSO D'INFORMACIÓ | G98: CASAL DE JOVES
A99: MONITOR | B99: 2007-12-31 | C99: 90 | D99: 0 | E99: 90 | F99: 131 - EQUIPAMENTS DE PROCESSO D'INFORMACIÓ | G99: CASAL DE JOVES
A100: PC | B100: 2007-12-31 | C100: 700 | D100: 0 | E100: 700 | F100: 131 - EQUIPAMENTS DE PROCESSO D'INFORMACIÓ | G100: CASAL DE JOVES
A101: ESTUFA | B101: 2007-12-31 | C101: 200 | D101: 0 | E101: 200 | F101: 147 - MOBILIARI | G101: CASAL DE JOVES
A102: SPLIT | B102: 2007-12-31 | C102: 400 | D102: 0 | E102: 400 | F102: 147 - MOBILIARI | G102: CASAL DE JOVES
A103: ESCALES | B103: 2007-12-31 | C103: 130 | D103: 0 | E103: 130 | F103: 147 - MOBILIARI | G103: CASAL DE JOVES
A104: ARXIVADORS | B104: 2007-12-31 | C104: 120 | D104: 0 | E104: 120 | F104: 147 - MOBILIARI | G104: CASAL DE JOVES
A105: ARMARIS RACK | B105: 2007-12-31 | C105: 200 | D105: 0 | E105: 200 | F105: 147 - MOBILIARI | G105: CASAL DE JOVES
A106: MONITOR | B106: 2007-12-31 | C106: 90 | D106: 0 | E106: 90 | F106: 131 - EQUIPAMENTS DE PROCESSO D'INFORMACIÓ | G106: CASAL DE JOVES
A107: PC | B107: 2007-12-31 | C107: 700 | D107: 0 | E107: 700 | F107: 131 - EQUIPAMENTS DE PROCESSO D'INFORMACIÓ | G107: CASAL DE JOVES
A108: PC | B108: 2007-12-31 | C108: 700 | D108: 0 | E108: 700 | F108: 131 - EQUIPAMENTS DE PROCESSO D'INFORMACIÓ | G108: CASAL DE JOVES
A109: MONITOR | B109: 2007-12-31 | C109: 90 | D109: 0 | E109: 90 | F109: 131 - EQUIPAMENTS DE PROCESSO D'INFORMACIÓ | G109: CASAL DE JOVES
A110: EQUIP DE SO | B110: 2007-12-31 | C110: 150 | D110: 0 | E110: 150 | F110: 147 - MOBILIARI | G110: CASAL DE JOVES
A111: EQUIP DE SO | B111: 2007-12-31 | C111: 150 | D111: 0 | E111: 150 | F111: 147 - MOBILIARI | G111: CASAL DE JOVES
A112: CISSALLA | B112: 2007-12-31 | C112: 360 | D112: 0 | E112: 360 | F112: 147 - MOBILIARI | G112: CASAL DE JOVES
A113: CAFETERA | B113: 2007-12-31 | C113: 100 | D113: 0 | E113: 100 | F113: 147 - MOBILIARI | G113: CASAL DE JOVES
A114: MICROONES | B114: 2007-12-31 | C114: 70 | D114: 0 | E114: 70 | F114: 147 - MOBILIARI | G114: CASAL DE JOVES
A115: NEVERA | B115: 2007-12-31 | C115: 400 | D115: 0 | E115: 400 | F115: 147 - MOBILIARI | G115: CASAL DE JOVES
A116: CANO PROJECTOR | B116: 2007-12-31 | C116: 800 | D116: 0 | E116: 800 | F116: 147 - MOBILIARI | G116: CASAL DE JOVES
A117: CAMARA DE FOTOS | B117: 2007-12-31 | C117: 100 | D117: 0 | E117: 100 | F117: 147 - MOBILIARI | G117: CASAL DE JOVES
A118: CAMARA DE VIDEO | B118: 2007-12-31 | C118: 100 | D118: 0 | E118: 100 | F118: 147 - MOBILIARI | G118: CASAL DE JOVES
A119: CAMARA DE VIDEO | B119: 2007-12-31 | C119: 100 | D119: 0 | E119: 100 | F119: 147 - MOBILIARI | G119: CASAL DE JOVES
A120: ORDINADOR PORTATIL | B120: 2007-12-31 | C120: 600 | D120: 0 | E120: 600 | F120: 131 - EQUIPAMENTS DE PROCESSO D'INFORMACIÓ | G120: CASAL DE JOVES
A121: SPLIT | B121: 2007-12-31 | C121: 400 | D121: 0 | E121: 400 | F121: 147 - MOBILIARI | G121: CASAL DE JOVES
A122: ESTUFA | B122: 2007-12-31 | C122: 200 | D122: 0 | E122: 200 | F122: 147 - MOBILIARI | G122: CASAL DE JOVES
A123: ESTUFA | B123: 2007-12-31 | C123: 200 | D123: 0 | E123: 200 | F123: 147 - MOBILIARI | G123: CASAL DE JOVES
A124: MONITOR | B124: 2007-12-31 | C124: 90 | D124: 0 | E124: 90 | F124: 131 - EQUIPAMENTS DE PROCESSO D'INFORMACIÓ | G124: CASAL DE JOVES
A125: PC | B125: 2007-12-31 | C125: 700 | D125: 0 | E125: 700 | F125: 131 - EQUIPAMENTS DE PROCESSO D'INFORMACIÓ | G125: CASAL DE JOVES
A126: TELEVISOR | B126: 2007-12-31 | C126: 800 | D126: 0 | E126: 800 | F126: 147 - MOBILIARI | G126: CASAL DE JOVES
A127: REPRODUCTOR DVD | B127: 2007-12-31 | C127: 60 | D127: 0 | E127: 60 | F127: 147 - MOBILIARI | G127: CASAL DE JOVES
A128: EXPOSITORS | B128: 2007-12-31 | C128: 60 | D128: 0 | E128: 60 | F128: 147 - MOBILIARI | G128: CASAL DE JOVES
A129: CADIRAM | B129: 2007-12-31 | C129: 106020 | D129: 0 | E129: 106020 | F129: 147 - MOBILIARI | G129: CENTRE CULTURAL
A130: TAULES | B130: 2007-12-31 | C130: 31200 | D130: 0 | E130: 31200 | F130: 147 - MOBILIARI | G130: CENTRE CULTURAL
A131: ARMARIS | B131: 2007-12-31 | C131: 17200 | D131: 0 | E131: 17200 | F131: 147 - MOBILIARI | G131: CENTRE CULTURAL
A132: BUCS DE CALAIXOS | B132: 2007-12-31 | C132: 560 | D132: 0 | E132: 560 | F132: 147 - MOBILIARI | G132: CENTRE CULTURAL
A133: PANTALLA DE PROJECCIÓ | B133: 2007-12-31 | C133: 90 | D133: 0 | E133: 90 | F133: 147 - MOBILIARI | G133: CENTRE CULTURAL
A134: PANTALLA DE PROJECCIÓ | B134: 2007-12-31 | C134: 90 | D134: 0 | E134: 90 | F134: 147 - MOBILIARI | G134: CENTRE CULTURAL
A135: VITRINA | B135: 2007-12-31 | C135: 1750 | D135: 0 | E135: 1750 | F135: 147 - MOBILIARI | G135: CENTRE CULTURAL
A136: BAFLE | B136: 2007-12-31 | C136: 460 | D136: 0 | E136: 460 | F136: 147 - MOBILIARI | G136: CENTRE CULTURAL
A137: BAFLE | B137: 2007-12-31 | C137: 460 | D137: 0 | E137: 460 | F137: 147 - MOBILIARI | G137: CENTRE CULTURAL
A138: BAFLE | B138: 2007-12-31 | C138: 460 | D138: 0 | E138: 460 | F138: 147 - MOBILIARI | G138: CENTRE CULTURAL
A139: BAFLE | B139: 2007-12-31 | C139: 460 | D139: 0 | E139: 460 | F139: 147 - MOBILIARI | G139: CENTRE CULTURAL
A140: MICROFON | B140: 2007-12-31 | C140: 80 | D140: 0 | E140: 80 | F140: 147 - MOBILIARI | G140: CENTRE CULTURAL
A141: MICROFON | B141: 2007-12-31 | C141: 80 | D141: 0 | E141: 80 | F141: 147 - MOBILIARI | G141: CENTRE CULTURAL
A142: TAULA DE MESCLES | B142: 2007-12-31 | C142: 2500 | D142: 0 | E142: 2500 | F142: 147 - MOBILIARI | G142: CENTRE CULTURAL
A143: REPRODUCTOR DVD | B143: 2007-12-31 | C143: 60 | D143: 0 | E143: 60 | F143: 147 - MOBILIARI | G143: CENTRE CULTURAL
A144: REPRODUCTOR DVD | B144: 2007-12-31 | C144: 60 | D144: 0 | E144: 60 | F144: 147 - MOBILIARI | G144: CENTRE CULTURAL
A145: AMPLIFICADOR | B145: 2007-12-31 | C145: 300 | D145: 0 | E145: 300 | F145: 147 - MOBILIARI | G145: CENTRE CULTURAL
A146: AMPLIFICADOR | B146: 2007-12-31 | C146: 300 | D146: 0 | E146: 300 | F146: 147 - MOBILIARI | G146: CENTRE CULTURAL
A147: TRANSMISSOR MICRÒFONS | B147: 2007-12-31 | C147: 150 | D147: 0 | E147: 150 | F147: 147 - MOBILIARI | G147: CENTRE CULTURAL
A148: MICROFON | B148: 2007-12-31 | C148: 80 | D148: 0 | E148: 80 | F148: 147 - MOBILIARI | G148: CENTRE CULTURAL
A149: ESCALES | B149: 2007-12-31 | C149: 910 | D149: 0 | E149: 910 | F149: 147 - MOBILIARI | G149: CENTRE CULTURAL
A150: TELEVISOR | B150: 2007-12-31 | C150: 800 | D150: 0 | E150: 800 | F150: 147 - MOBILIARI | G150: CENTRE CULTURAL
A151: REPRODUCTOR DVD | B151: 2007-12-31 | C151: 60 | D151: 0 | E151: 60 | F151: 147 - MOBILIARI | G151: CENTRE CULTURAL
A152: EXPOSITORS | B152: 2007-12-31 | C152: 1140 | D152: 0 | E152: 1140 | F152: 147 - MOBILIARI | G152: CENTRE CULTURAL
A153: SPLIT | B153: 2007-12-31 | C153: 400 | D153: 0 | E153: 400 | F153: 147 - MOBILIARI | G153: CENTRE CULTURAL
A154: ORDINADOR PORTATIL | B154: 2007-12-31 | C154: 600 | D154: 0 | E154: 600 | F154: 131 - EQUIPAMENTS DE PROCESSO D'INFORMACIÓ | G154: CENTRE CULTURAL
A155: CAFETERA | B155: 2007-12-31 | C155: 100 | D155: 0 | E155: 100 | F155: 147 - MOBILIARI | G155: CENTRE CULTURAL
A156: SPLIT | B156: 2007-12-31 | C156: 400 | D156: 0 | E156: 400 | F156: 147 - MOBILIARI | G156: CENTRE CULTURAL
A157: EQUIP DE SO | B157: 2007-12-31 | C157: 150 | D157: 0 | E157: 150 | F157: 147 - MOBILIARI | G157: CENTRE CULTURAL
A158: FOCUS | B158: 2007-12-31 | C158: 80 | D158: 0 | E158: 80 | F158: 147 - MOBILIARI | G158: CENTRE CULTURAL
A159: CISSALLA | B159: 2007-12-31 | C159: 360 | D159: 0 | E159: 360 | F159: 147 - MOBILIARI | G159: CENTRE CULTURAL
A160: FAX | B160: 2007-12-31 | C160: 60 | D160: 0 | E160: 60 | F160: 131 - EQUIPAMENTS DE PROCESSO D'INFORMACIÓ | G160: CENTRE CULTURAL
A161: DESFIBRIL·LADOR | B161: 2007-12-31 | C161: 1100 | D161: 0 | E161: 1100 | F161: 147 - MOBILIARI | G161: CENTRE CULTURAL
A162: DESTRUCTORA DE DOCUMENTS | B162: 2007-12-31 | C162: 180 | D162: 0 | E162: 180 | F162: 147 - MOBILIARI | G162: CENTRE CULTURAL
A163: MONITOR | B163: 2007-12-31 | C163: 90 | D163: 0 | E163: 90 | F163: 131 - EQUIPAMENTS DE PROCESSO D'INFORMACIÓ | G163: CENTRE CULTURAL
A164: PC | B164: 2007-12-31 | C164: 700 | D164: 0 | E164: 700 | F164: 131 - EQUIPAMENTS DE PROCESSO D'INFORMACIÓ | G164: CENTRE CULTURAL
A165: MONITOR | B165: 2007-12-31 | C165: 90 | D165: 0 | E165: 90 | F165: 131 - EQUIPAMENTS DE PROCESSO D'INFORMACIÓ | G165: CENTRE CULTURAL
A166: PC | B166: 2007-12-31 | C166: 700 | D166: 0 | E166: 700 | F166: 131 - EQUIPAMENTS DE PROCESSO D'INFORMACIÓ | G166: CENTRE CULTURAL
A167: MONITOR | B167: 2007-12-31 | C167: 90 | D167: 0 | E167: 90 | F167: 131 - EQUIPAMENTS DE PROCESSO D'INFORMACIÓ | G167: CENTRE CULTURAL
A168: GRAVADORA SEGURETAT | B168: 2007-12-31 | C168: 300 | D168: 0 | E168: 300 | F168: 147 - MOBILIARI | G168: CENTRE CULTURAL
A169: ENQUADERNADORA | B169: 2007-12-31 | C169: 80 | D169: 0 | E169: 80 | F169: 147 - MOBILIARI | G169: CENTRE CULTURAL
A170: BAFLE | B170: 2007-12-31 | C170: 460 | D170: 0 | E170: 460 | F170: 147 - MOBILIARI | G170: CENTRE CULTURAL
A171: BAFLE | B171: 2007-12-31 | C171: 460 | D171: 0 | E171: 460 | F171: 147 - MOBILIARI | G171: CENTRE CULTURAL
A172: BAFLE | B172: 2007-12-31 | C172: 460 | D172: 0 | E172: 460 | F172: 147 - MOBILIARI | G172: CENTRE CULTURAL
A173: BAFLE | B173: 2007-12-31 | C173: 460 | D173: 0 | E173: 460 | F173: 147 - MOBILIARI | G173: CENTRE CULTURAL
A174: BAFLE | B174: 2007-12-31 | C174: 460 | D174: 0 | E174: 460 | F174: 147 - MOBILIARI | G174: CENTRE CULTURAL
A175: BAFLE | B175: 2007-12-31 | C175: 460 | D175: 0 | E175: 460 | F175: 147 - MOBILIARI | G175: CENTRE CULTURAL
A176: BAFLE | B176: 2007-12-31 | C176: 460 | D176: 0 | E176: 460 | F176: 147 - MOBILIARI | G176: CENTRE CULTURAL
A177: BAFLE | B177: 2007-12-31 | C177: 460 | D177: 0 | E177: 460 | F177: 147 - MOBILIARI | G177: CENTRE CULTURAL
A178: BAFLE | B178: 2007-12-31 | C178: 460 | D178: 0 | E178: 460 | F178: 147 - MOBILIARI | G178: CENTRE CULTURAL
A179: BAFLE | B179: 2007-12-31 | C179: 460 | D179: 0 | E179: 460 | F179: 147 - MOBILIARI | G179: CENTRE CULTURAL
A180: CARPES | B180: 2007-12-31 | C180: 1 | D180: 0 | E180: 1 | F180: 147 - MOBILIARI | G180: CENTRE CULTURAL
A181: AMPLIFICADOR | B181: 2007-12-31 | C181: 300 | D181: 0 | E181: 300 | F181: 147 - MOBILIARI | G181: CENTRE CULTURAL
A182: REPRODUCTOR CD | B182: 2007-12-31 | C182: 50 | D182: 0 | E182: 50 | F182: 147 - MOBILIARI | G182: CENTRE CULTURAL
A183: TAULA DE MESCLES | B183: 2007-12-31 | C183: 2500 | D183: 0 | E183: 2500 | F183: 147 - MOBILIARI | G183: CENTRE CULTURAL
A184: REPRODUCTOR CD | B184: 2007-12-31 | C184: 50 | D184: 0 | E184: 50 | F184: 147 - MOBILIARI | G184: CENTRE CULTURAL
A185: AMPLIFICADOR | B185: 2007-12-31 | C185: 300 | D185: 0 | E185: 300 | F185: 147 - MOBILIARI | G185: CENTRE CULTURAL
A186: TAULA DE MESCLES | B186: 2007-12-31 | C186: 2500 | D186: 0 | E186: 2500 | F186: 147 - MOBILIARI | G186: CENTRE CULTURAL
A187: REPRODUCTOR CD | B187: 2007-12-31 | C187: 50 | D187: 0 | E187: 50 | F187: 147 - MOBILIARI | G187: CENTRE CULTURAL
A188: COMPRESSOR | B188: 2007-12-31 | C188: 150 | D188: 0 | E188: 150 | F188: 147 - MOBILIARI | G188: CENTRE CULTURAL
A189: AMPLIFICADOR | B189: 2007-12-31 | C189: 300 | D189: 0 | E189: 300 | F189: 147 - MOBILIARI | G189: CENTRE CULTURAL
A190: TRIPODES BAFLES | B190: 2007-12-31 | C190: 600 | D190: 0 | E190: 600 | F190: 147 - MOBILIARI | G190: CENTRE CULTURAL
A191: PEU DE MICRÒFON | B191: 2007-12-31 | C191: 300 | D191: 0 | E191: 300 | F191: 147 - MOBILIARI | G191: CENTRE CULTURAL
A192: TORRES DE FOCUS | B192: 2007-12-31 | C192: 420 | D192: 0 | E192: 420 | F192: 147 - MOBILIARI | G192: CENTRE CULTURAL
A193: BAFLE | B193: 2007-12-31 | C193: 460 | D193: 0 | E193: 460 | F193: 147 - MOBILIARI | G193: CENTRE CULTURAL
A194: BAFLE | B194: 2007-12-31 | C194: 460 | D194: 0 | E194: 460 | F194: 147 - MOBILIARI | G194: CENTRE CULTURAL
A195: BAFLE | B195: 2007-12-31 | C195: 460 | D195: 0 | E195: 460 | F195: 147 - MOBILIARI | G195: CENTRE CULTURAL
A196: BAFLE | B196: 2007-12-31 | C196: 460 | D196: 0 | E196: 460 | F196: 147 - MOBILIARI | G196: CENTRE CULTURAL
A197: PISSARRA | B197: 2007-12-31 | C197: 1190 | D197: 0 | E197: 1190 | F197: 147 - MOBILIARI | G197: CENTRE CULTURAL
A198: REPRODUCTOR DVD | B198: 2007-12-31 | C198: 60 | D198: 0 | E198: 60 | F198: 147 - MOBILIARI | G198: CENTRE CULTURAL
A199: COMPRESSOR | B199: 2007-12-31 | C199: 150 | D199: 0 | E199: 150 | F199: 147 - MOBILIARI | G199: CENTRE CULTURAL
A200: AMPLIFICADOR | B200: 2007-12-31 | C200: 300 | D200: 0 | E200: 300 | F200: 147 - MOBILIARI | G200: CENTRE CULTURAL
... 270 more rows

Sheet PMO
A1: Descripció del bé | B1: Data adquisició | C1: Valoració | D1: Millores | E1: Total | F1: Família | G1: Ubicació
A2: PATRONAT OCUPACIÓ - C/ S. SEBASTIÀ 26 - CAN TIANA | B2: 1974-07-05 | C2: 433641.62 | D2: 23225.15 | E2: 456866.77 | F2: 121 - INMOBLES (DOMINI PÚBLIC) | G2: MUNICIPI
A3: TERRENY CENTRE OCUPACIONAL - C/ PADRÓ - P.GASSÓ-V. | B3: 1992-07-23 | C3: 495300 | D3: 0 | E3: 495300 | F3: 121 - INMOBLES (DOMINI PÚBLIC) | G3: MUNICIPI
A4: BRIGADA I BUCS - AV RIU RIPOLL 95 97- CADESBANK | B4: 2001-06-22 | C4: 541174.08 | D4: 23225.15 | E4: 564399.23 | F4: 121 - INMOBLES (DOMINI PÚBLIC) | G4: MUNICIPI
A5: ANNEX BRIGADA - AV RIU RIPOLL 95 97 - P. CADESBANK | B5: 2001-05-30 | C5: 82699.27 | D5: 23225.15 | E5: 105924.42 | F5: 121 - INMOBLES (DOMINI PÚBLIC) | G5: MUNICIPI
A6: TERRENY PATRONAT OCUPACIÓ - C/ S. SEBASTIÀ 26 - CAN TIANA | B6: 1974-07-05 | C6: 156928.5 | D6: 0 | E6: 156928.5 | F6: 121 - INMOBLES (DOMINI PÚBLIC) | G6: MUNICIPI
A7: TERRENY BRIGADA I BUCS - AV RIU RIPOLL 95 97- CADESBANK | B7: 2001-06-22 | C7: 30442.3875 | D7: 0 | E7: 30442.3875 | F7: 121 - INMOBLES (DOMINI PÚBLIC) | G7: MUNICIPI
A8: CADIRAM | B8: 2007-12-31 | C8: 49590 | D8: 0 | E8: 49590 | F8: 147 - MOBILIARI | G8: PATRONAT MUNICIPAL D'OCUPACIÓ
A9: TAULES | B9: 2007-12-31 | C9: 17000 | D9: 0 | E9: 17000 | F9: 147 - MOBILIARI | G9: PATRONAT MUNICIPAL D'OCUPACIÓ
A10: ARMARIS | B10: 2007-12-31 | C10: 12000 | D10: 0 | E10: 12000 | F10: 147 - MOBILIARI | G10: PATRONAT MUNICIPAL D'OCUPACIÓ
A11: BUCS DE CALAIXOS | B11: 2007-12-31 | C11: 1600 | D11: 0 | E11: 1600 | F11: 147 - MOBILIARI | G11: PATRONAT MUNICIPAL D'OCUPACIÓ
A12: FONT D'AIGUA | B12: 2007-12-31 | C12: 500 | D12: 0 | E12: 500 | F12: 147 - MOBILIARI | G12: PATRONAT MUNICIPAL D'OCUPACIÓ
A13: EXPOSITORS | B13: 2007-12-31 | C13: 180 | D13: 0 | E13: 180 | F13: 147 - MOBILIARI | G13: PATRONAT MUNICIPAL D'OCUPACIÓ
A14: SPLIT | B14: 2007-12-31 | C14: 400 | D14: 0 | E14: 400 | F14: 147 - MOBILIARI | G14: PATRONAT MUNICIPAL D'OCUPACIÓ
A15: PC | B15: 2007-12-31 | C15: 700 | D15: 0 | E15: 700 | F15: 131 - EQUIPAMENTS DE PROCESSO D'INFORMACIÓ | G15: PATRONAT MUNICIPAL D'OCUPACIÓ
A16: MONITOR | B16: 2007-12-31 | C16: 90 | D16: 0 | E16: 90 | F16: 131 - EQUIPAMENTS DE PROCESSO D'INFORMACIÓ | G16: PATRONAT MUNICIPAL D'OCUPACIÓ
A17: PC | B17: 2007-12-31 | C17: 700 | D17: 0 | E17: 700 | F17: 131 - EQUIPAMENTS DE PROCESSO D'INFORMACIÓ | G17: PATRONAT MUNICIPAL D'OCUPACIÓ
A18: MONITOR | B18: 2007-12-31 | C18: 90 | D18: 0 | E18: 90 | F18: 131 - EQUIPAMENTS DE PROCESSO D'INFORMACIÓ | G18: PATRONAT MUNICIPAL D'OCUPACIÓ
A19: PISSARRA | B19: 2007-12-31 | C19: 2310 | D19: 0 | E19: 2310 | F19: 147 - MOBILIARI | G19: PATRONAT MUNICIPAL D'OCUPACIÓ
A20: SPLIT | B20: 2007-12-31 | C20: 400 | D20: 0 | E20: 400 | F20: 147 - MOBILIARI | G20: PATRONAT MUNICIPAL D'OCUPACIÓ
A21: ARXIVADORS | B21: 2007-12-31 | C21: 240 | D21: 0 | E21: 240 | F21: 147 - MOBILIARI | G21: PATRONAT MUNICIPAL D'OCUPACIÓ
A22: PC | B22: 2007-12-31 | C22: 700 | D22: 0 | E22: 700 | F22: 131 - EQUIPAMENTS DE PROCESSO D'INFORMACIÓ | G22: PATRONAT MUNICIPAL D'OCUPACIÓ
A23: MONITOR | B23: 2007-12-31 | C23: 90 | D23: 0 | E23: 90 | F23: 131 - EQUIPAMENTS DE PROCESSO D'INFORMACIÓ | G23: PATRONAT MUNICIPAL D'OCUPACIÓ
A24: IMPRESSORA | B24: 2007-12-31 | C24: 380 | D24: 0 | E24: 380 | F24: 131 - EQUIPAMENTS DE PROCESSO D'INFORMACIÓ | G24: PATRONAT MUNICIPAL D'OCUPACIÓ
A25: PC | B25: 2007-12-31 | C25: 700 | D25: 0 | E25: 700 | F25: 131 - EQUIPAMENTS DE PROCESSO D'INFORMACIÓ | G25: PATRONAT MUNICIPAL D'OCUPACIÓ
A26: MONITOR | B26: 2007-12-31 | C26: 90 | D26: 0 | E26: 90 | F26: 131 - EQUIPAMENTS DE PROCESSO D'INFORMACIÓ | G26: PATRONAT MUNICIPAL D'OCUPACIÓ
A27: IMPRESSORA | B27: 2007-12-31 | C27: 380 | D27: 0 | E27: 380 | F27: 131 - EQUIPAMENTS DE PROCESSO D'INFORMACIÓ | G27: PATRONAT MUNICIPAL D'OCUPACIÓ
A28: PC | B28: 2007-12-31 | C28: 700 | D28: 0 | E28: 700 | F28: 131 - EQUIPAMENTS DE PROCESSO D'INFORMACIÓ | G28: PATRONAT MUNICIPAL D'OCUPACIÓ
A29: PC | B29: 2007-12-31 | C29: 700 | D29: 0 | E29: 700 | F29: 131 - EQUIPAMENTS DE PROCESSO D'INFORMACIÓ | G29: PATRONAT MUNICIPAL D'OCUPACIÓ
A30: PC | B30: 2007-12-31 | C30: 700 | D30: 0 | E30: 700 | F30: 131 - EQUIPAMENTS DE PROCESSO D'INFORMACIÓ | G30: PATRONAT MUNICIPAL D'OCUPACIÓ
A31: MONITOR | B31: 2007-12-31 | C31: 90 | D31: 0 | E31: 90 | F31: 131 - EQUIPAMENTS DE PROCESSO D'INFORMACIÓ | G31: PATRONAT MUNICIPAL D'OCUPACIÓ
A32: TELEVISOR | B32: 2007-12-31 | C32: 800 | D32: 0 | E32: 800 | F32: 147 - MOBILIARI | G32: PATRONAT MUNICIPAL D'OCUPACIÓ
A33: PC | B33: 2007-12-31 | C33: 700 | D33: 0 | E33: 700 | F33: 131 - EQUIPAMENTS DE PROCESSO D'INFORMACIÓ | G33: PATRONAT MUNICIPAL D'OCUPACIÓ
A34: MICROFON | B34: 2007-12-31 | C34: 80 | D34: 0 | E34: 80 | F34: 147 - MOBILIARI | G34: PATRONAT MUNICIPAL D'OCUPACIÓ
A35: PC | B35: 2007-12-31 | C35: 700 | D35: 0 | E35: 700 | F35: 131 - EQUIPAMENTS DE PROCESSO D'INFORMACIÓ | G35: PATRONAT MUNICIPAL D'OCUPACIÓ
A36: MONITOR | B36: 2007-12-31 | C36: 90 | D36: 0 | E36: 90 | F36: 131 - EQUIPAMENTS DE PROCESSO D'INFORMACIÓ | G36: PATRONAT MUNICIPAL D'OCUPACIÓ
A37: PC | B37: 2007-12-31 | C37: 700 | D37: 0 | E37: 700 | F37: 131 - EQUIPAMENTS DE PROCESSO D'INFORMACIÓ | G37: PATRONAT MUNICIPAL D'OCUPACIÓ
A38: MONITOR | B38: 2007-12-31 | C38: 90 | D38: 0 | E38: 90 | F38: 131 - EQUIPAMENTS DE PROCESSO D'INFORMACIÓ | G38: PATRONAT MUNICIPAL D'OCUPACIÓ
A39: PC | B39: 2007-12-31 | C39: 700 | D39: 0 | E39: 700 | F39: 131 - EQUIPAMENTS DE PROCESSO D'INFORMACIÓ | G39: PATRONAT MUNICIPAL D'OCUPACIÓ
A40: SPLIT | B40: 2007-12-31 | C40: 400 | D40: 0 | E40: 400 | F40: 147 - MOBILIARI | G40: PATRONAT MUNICIPAL D'OCUPACIÓ
A41: SPLIT | B41: 2007-12-31 | C41: 400 | D41: 0 | E41: 400 | F41: 147 - MOBILIARI | G41: PATRONAT MUNICIPAL D'OCUPACIÓ
A42: ESCALES | B42: 2007-12-31 | C42: 390 | D42: 0 | E42: 390 | F42: 147 - MOBILIARI | G42: PATRONAT MUNICIPAL D'OCUPACIÓ
A43: SPLIT | B43: 2007-12-31 | C43: 400 | D43: 0 | E43: 400 | F43: 147 - MOBILIARI | G43: PATRONAT MUNICIPAL D'OCUPACIÓ
A44: ENQUADERNADORA | B44: 2007-12-31 | C44: 80 | D44: 0 | E44: 80 | F44: 147 - MOBILIARI | G44: PATRONAT MUNICIPAL D'OCUPACIÓ
A45: IMPRESSORA | B45: 2007-12-31 | C45: 380 | D45: 0 | E45: 380 | F45: 131 - EQUIPAMENTS DE PROCESSO D'INFORMACIÓ | G45: PATRONAT MUNICIPAL D'OCUPACIÓ
A46: DESTRUCTORA DE DOCUMENTS | B46: 2007-12-31 | C46: 180 | D46: 0 | E46: 180 | F46: 147 - MOBILIARI | G46: PATRONAT MUNICIPAL D'OCUPACIÓ
A47: IMPRESSORA MULTIFUNCIO | B47: 2007-12-31 | C47: 500 | D47: 0 | E47: 500 | F47: 131 - EQUIPAMENTS DE PROCESSO D'INFORMACIÓ | G47: PATRONAT MUNICIPAL D'OCUPACIÓ
A48: AMPLIFICADOR | B48: 2007-12-31 | C48: 300 | D48: 0 | E48: 300 | F48: 147 - MOBILIARI | G48: PATRONAT MUNICIPAL D'OCUPACIÓ
A49: PLASTIFICADORA | B49: 2007-12-31 | C49: 70 | D49: 0 | E49: 70 | F49: 147 - MOBILIARI | G49: PATRONAT MUNICIPAL D'OCUPACIÓ
A50: GRAVADORA | B50: 2007-12-31 | C50: 150 | D50: 0 | E50: 150 | F50: 147 - MOBILIARI | G50: PATRONAT MUNICIPAL D'OCUPACIÓ
A51: ARMARIS RACK | B51: 2007-12-31 | C51: 600 | D51: 0 | E51: 600 | F51: 147 - MOBILIARI | G51: PATRONAT MUNICIPAL D'OCUPACIÓ
A52: SWITCH | B52: 2007-12-31 | C52: 50 | D52: 0 | E52: 50 | F52: 131 - EQUIPAMENTS DE PROCESSO D'INFORMACIÓ | G52: PATRONAT MUNICIPAL D'OCUPACIÓ
A53: SWITCH | B53: 2007-12-31 | C53: 50 | D53: 0 | E53: 50 | F53: 131 - EQUIPAMENTS DE PROCESSO D'INFORMACIÓ | G53: PATRONAT MUNICIPAL D'OCUPACIÓ
A54: SAI | B54: 2007-12-31 | C54: 190 | D54: 0 | E54: 190 | F54: 147 - MOBILIARI | G54: PATRONAT MUNICIPAL D'OCUPACIÓ
A55: SPLIT | B55: 2007-12-31 | C55: 400 | D55: 0 | E55: 400 | F55: 147 - MOBILIARI | G55: PATRONAT MUNICIPAL D'OCUPACIÓ
A56: PC | B56: 2007-12-31 | C56: 700 | D56: 0 | E56: 700 | F56: 131 - EQUIPAMENTS DE PROCESSO D'INFORMACIÓ | G56: PATRONAT MUNICIPAL D'OCUPACIÓ
A57: IMPRESSORA | B57: 2007-12-31 | C57: 380 | D57: 0 | E57: 380 | F57: 131 - EQUIPAMENTS DE PROCESSO D'INFORMACIÓ | G57: PATRONAT MUNICIPAL D'OCUPACIÓ
A58: IMPRESSORA | B58: 2007-12-31 | C58: 380 | D58: 0 | E58: 380 | F58: 131 - EQUIPAMENTS DE PROCESSO D'INFORMACIÓ | G58: PATRONAT MUNICIPAL D'OCUPACIÓ
A59: PC | B59: 2007-12-31 | C59: 700 | D59: 0 | E59: 700 | F59: 131 - EQUIPAMENTS DE PROCESSO D'INFORMACIÓ | G59: PATRONAT MUNICIPAL D'OCUPACIÓ
A60: SPLIT | B60: 2007-12-31 | C60: 400 | D60: 0 | E60: 400 | F60: 147 - MOBILIARI | G60: PATRONAT MUNICIPAL D'OCUPACIÓ
A61: SPLIT | B61: 2007-12-31 | C61: 400 | D61: 0 | E61: 400 | F61: 147 - MOBILIARI | G61: PATRONAT MUNICIPAL D'OCUPACIÓ
A62: IMPRESSORA MULTIFUNCIO | B62: 2007-12-31 | C62: 500 | D62: 0 | E62: 500 | F62: 131 - EQUIPAMENTS DE PROCESSO D'INFORMACIÓ | G62: PATRONAT MUNICIPAL D'OCUPACIÓ
A63: IMPRESSORA | B63: 2007-12-31 | C63: 380 | D63: 0 | E63: 380 | F63: 131 - EQUIPAMENTS DE PROCESSO D'INFORMACIÓ | G63: PATRONAT MUNICIPAL D'OCUPACIÓ
A64: CAFETERA | B64: 2007-12-31 | C64: 100 | D64: 0 | E64: 100 | F64: 147 - MOBILIARI | G64: PATRONAT MUNICIPAL D'OCUPACIÓ
A65: SPLIT | B65: 2007-12-31 | C65: 400 | D65: 0 | E65: 400 | F65: 147 - MOBILIARI | G65: PATRONAT MUNICIPAL D'OCUPACIÓ
A66: PC | B66: 2007-12-31 | C66: 700 | D66: 0 | E66: 700 | F66: 131 - EQUIPAMENTS DE PROCESSO D'INFORMACIÓ | G66: PATRONAT MUNICIPAL D'OCUPACIÓ
A67: DESTRUCTORA DE DOCUMENTS | B67: 2007-12-31 | C67: 180 | D67: 0 | E67: 180 | F67: 147 - MOBILIARI | G67: PATRONAT MUNICIPAL D'OCUPACIÓ
A68: IMPRESSORA | B68: 2007-12-31 | C68: 380 | D68: 0 | E68: 380 | F68: 131 - EQUIPAMENTS DE PROCESSO D'INFORMACIÓ | G68: PATRONAT MUNICIPAL D'OCUPACIÓ
A69: IMPRESSORA | B69: 2007-12-31 | C69: 380 | D69: 0 | E69: 380 | F69: 131 - EQUIPAMENTS DE PROCESSO D'INFORMACIÓ | G69: PATRONAT MUNICIPAL D'OCUPACIÓ
A70: ARMARIS RACK | B70: 2007-12-31 | C70: 600 | D70: 0 | E70: 600 | F70: 147 - MOBILIARI | G70: PATRONAT MUNICIPAL D'OCUPACIÓ
A71: SPLIT | B71: 2007-12-31 | C71: 400 | D71: 0 | E71: 400 | F71: 147 - MOBILIARI | G71: PATRONAT MUNICIPAL D'OCUPACIÓ
A72: SPLIT | B72: 2007-12-31 | C72: 400 | D72: 0 | E72: 400 | F72: 147 - MOBILIARI | G72: PATRONAT MUNICIPAL D'OCUPACIÓ
A73: PROJECTOR DIAPOSITIVES | B73: 2007-12-31 | C73: 450 | D73: 0 | E73: 450 | F73: 147 - MOBILIARI | G73: PATRONAT MUNICIPAL D'OCUPACIÓ
A74: TELEVISOR | B74: 2007-12-31 | C74: 800 | D74: 0 | E74: 800 | F74: 147 - MOBILIARI | G74: PATRONAT MUNICIPAL D'OCUPACIÓ
A75: REPRODUCTOR VHS | B75: 2007-12-31 | C75: 30 | D75: 0 | E75: 30 | F75: 147 - MOBILIARI | G75: PATRONAT MUNICIPAL D'OCUPACIÓ
A76: SPLIT | B76: 2007-12-31 | C76: 400 | D76: 0 | E76: 400 | F76: 147 - MOBILIARI | G76: PATRONAT MUNICIPAL D'OCUPACIÓ
A77: SPLIT | B77: 2007-12-31 | C77: 400 | D77: 0 | E77: 400 | F77: 147 - MOBILIARI | G77: PATRONAT MUNICIPAL D'OCUPACIÓ
A78: CISSALLA | B78: 2007-12-31 | C78: 360 | D78: 0 | E78: 360 | F78: 147 - MOBILIARI | G78: PATRONAT MUNICIPAL D'OCUPACIÓ
A79: SPLIT | B79: 2007-12-31 | C79: 400 | D79: 0 | E79: 400 | F79: 147 - MOBILIARI | G79: PATRONAT MUNICIPAL D'OCUPACIÓ
A80: ORDINADOR PORTATIL | B80: 2007-12-31 | C80: 600 | D80: 0 | E80: 600 | F80: 131 - EQUIPAMENTS DE PROCESSO D'INFORMACIÓ | G80: PATRONAT MUNICIPAL D'OCUPACIÓ
A81: CANO PROJECTOR | B81: 2007-12-31 | C81: 800 | D81: 0 | E81: 800 | F81: 147 - MOBILIARI | G81: PATRONAT MUNICIPAL D'OCUPACIÓ
A82: PC | B82: 2007-12-31 | C82: 700 | D82: 0 | E82: 700 | F82: 131 - EQUIPAMENTS DE PROCESSO D'INFORMACIÓ | G82: PATRONAT MUNICIPAL D'OCUPACIÓ
A83: MONITOR | B83: 2007-12-31 | C83: 90 | D83: 0 | E83: 90 | F83: 131 - EQUIPAMENTS DE PROCESSO D'INFORMACIÓ | G83: PATRONAT MUNICIPAL D'OCUPACIÓ
A84: SPLIT | B84: 2007-12-31 | C84: 400 | D84: 0 | E84: 400 | F84: 147 - MOBILIARI | G84: PATRONAT MUNICIPAL D'OCUPACIÓ
A85: SPLIT | B85: 2007-12-31 | C85: 400 | D85: 0 | E85: 400 | F85: 147 - MOBILIARI | G85: PATRONAT MUNICIPAL D'OCUPACIÓ
A86: SPLIT | B86: 2007-12-31 | C86: 400 | D86: 0 | E86: 400 | F86: 147 - MOBILIARI | G86: PATRONAT MUNICIPAL D'OCUPACIÓ
A87: CONJUNT BANDERES | B87: 2007-12-31 | C87: 100 | D87: 0 | E87: 100 | F87: 147 - MOBILIARI | G87: PATRONAT MUNICIPAL D'OCUPACIÓ
A88: ORDINADOR PORTATIL | B88: 2007-12-31 | C88: 600 | D88: 0 | E88: 600 | F88: 131 - EQUIPAMENTS DE PROCESSO D'INFORMACIÓ | G88: PATRONAT MUNICIPAL D'OCUPACIÓ
A89: ORDINADOR PORTATIL | B89: 2007-12-31 | C89: 600 | D89: 0 | E89: 600 | F89: 131 - EQUIPAMENTS DE PROCESSO D'INFORMACIÓ | G89: PATRONAT MUNICIPAL D'OCUPACIÓ
A90: SPLIT | B90: 2007-12-31 | C90: 400 | D90: 0 | E90: 400 | F90: 147 - MOBILIARI | G90: PATRONAT MUNICIPAL D'OCUPACIÓ
A91: PANTALLA DE PROJECCIÓ | B91: 2007-12-31 | C91: 90 | D91: 0 | E91: 90 | F91: 147 - MOBILIARI | G91: PATRONAT MUNICIPAL D'OCUPACIÓ
A92: SWITCH | B92: 2007-12-31 | C92: 50 | D92: 0 | E92: 50 | F92: 131 - EQUIPAMENTS DE PROCESSO D'INFORMACIÓ | G92: PATRONAT MUNICIPAL D'OCUPACIÓ
A93: MONITOR | B93: 2007-12-31 | C93: 90 | D93: 0 | E93: 90 | F93: 131 - EQUIPAMENTS DE PROCESSO D'INFORMACIÓ | G93: PATRONAT MUNICIPAL D'OCUPACIÓ
A94: PC | B94: 2007-12-31 | C94: 700 | D94: 0 | E94: 700 | F94: 131 - EQUIPAMENTS DE PROCESSO D'INFORMACIÓ | G94: PATRONAT MUNICIPAL D'OCUPACIÓ
A95: MONITOR | B95: 2007-12-31 | C95: 90 | D95: 0 | E95: 90 | F95: 131 - EQUIPAMENTS DE PROCESSO D'INFORMACIÓ | G95: PATRONAT MUNICIPAL D'OCUPACIÓ
A96: PC | B96: 2007-12-31 | C96: 700 | D96: 0 | E96: 700 | F96: 131 - EQUIPAMENTS DE PROCESSO D'INFORMACIÓ | G96: PATRONAT MUNICIPAL D'OCUPACIÓ
A97: MONITOR | B97: 2007-12-31 | C97: 90 | D97: 0 | E97: 90 | F97: 131 - EQUIPAMENTS DE PROCESSO D'INFORMACIÓ | G97: PATRONAT MUNICIPAL D'OCUPACIÓ
A98: PC | B98: 2007-12-31 | C98: 700 | D98: 0 | E98: 700 | F98: 131 - EQUIPAMENTS DE PROCESSO D'INFORMACIÓ | G98: PATRONAT MUNICIPAL D'OCUPACIÓ
A99: MONITOR | B99: 2007-12-31 | C99: 90 | D99: 0 | E99: 90 | F99: 131 - EQUIPAMENTS DE PROCESSO D'INFORMACIÓ | G99: PATRONAT MUNICIPAL D'OCUPACIÓ
A100: PC | B100: 2007-12-31 | C100: 700 | D100: 0 | E100: 700 | F100: 131 - EQUIPAMENTS DE PROCESSO D'INFORMACIÓ | G100: PATRONAT MUNICIPAL D'OCUPACIÓ
A101: MONITOR | B101: 2007-12-31 | C101: 90 | D101: 0 | E101: 90 | F101: 131 - EQUIPAMENTS DE PROCESSO D'INFORMACIÓ | G101: PATRONAT MUNICIPAL D'OCUPACIÓ
A102: PC | B102: 2007-12-31 | C102: 700 | D102: 0 | E102: 700 | F102: 131 - EQUIPAMENTS DE PROCESSO D'INFORMACIÓ | G102: PATRONAT MUNICIPAL D'OCUPACIÓ
A103: MONITOR | B103: 2007-12-31 | C103: 90 | D103: 0 | E103: 90 | F103: 131 - EQUIPAMENTS DE PROCESSO D'INFORMACIÓ | G103: PATRONAT MUNICIPAL D'OCUPACIÓ
A104: PC | B104: 2007-12-31 | C104: 700 | D104: 0 | E104: 700 | F104: 131 - EQUIPAMENTS DE PROCESSO D'INFORMACIÓ | G104: PATRONAT MUNICIPAL D'OCUPACIÓ
A105: MONITOR | B105: 2007-12-31 | C105: 90 | D105: 0 | E105: 90 | F105: 131 - EQUIPAMENTS DE PROCESSO D'INFORMACIÓ | G105: PATRONAT MUNICIPAL D'OCUPACIÓ
A106: PC | B106: 2007-12-31 | C106: 700 | D106: 0 | E106: 700 | F106: 131 - EQUIPAMENTS DE PROCESSO D'INFORMACIÓ | G106: PATRONAT MUNICIPAL D'OCUPACIÓ
A107: MONITOR | B107: 2007-12-31 | C107: 90 | D107: 0 | E107: 90 | F107: 131 - EQUIPAMENTS DE PROCESSO D'INFORMACIÓ | G107: PATRONAT MUNICIPAL D'OCUPACIÓ
A108: PC | B108: 2007-12-31 | C108: 700 | D108: 0 | E108: 700 | F108: 131 - EQUIPAMENTS DE PROCESSO D'INFORMACIÓ | G108: PATRONAT MUNICIPAL D'OCUPACIÓ
A109: MONITOR | B109: 2007-12-31 | C109: 90 | D109: 0 | E109: 90 | F109: 131 - EQUIPAMENTS DE PROCESSO D'INFORMACIÓ | G109: PATRONAT MUNICIPAL D'OCUPACIÓ
A110: PC | B110: 2007-12-31 | C110: 700 | D110: 0 | E110: 700 | F110: 131 - EQUIPAMENTS DE PROCESSO D'INFORMACIÓ | G110: PATRONAT MUNICIPAL D'OCUPACIÓ
A111: MONITOR | B111: 2007-12-31 | C111: 90 | D111: 0 | E111: 90 | F111: 131 - EQUIPAMENTS DE PROCESSO D'INFORMACIÓ | G111: PATRONAT MUNICIPAL D'OCUPACIÓ
A112: PC | B112: 2007-12-31 | C112: 700 | D112: 0 | E112: 700 | F112: 131 - EQUIPAMENTS DE PROCESSO D'INFORMACIÓ | G112: PATRONAT MUNICIPAL D'OCUPACIÓ
A113: MONITOR | B113: 2007-12-31 | C113: 90 | D113: 0 | E113: 90 | F113: 131 - EQUIPAMENTS DE PROCESSO D'INFORMACIÓ | G113: PATRONAT MUNICIPAL D'OCUPACIÓ
A114: PC | B114: 2007-12-31 | C114: 700 | D114: 0 | E114: 700 | F114: 131 - EQUIPAMENTS DE PROCESSO D'INFORMACIÓ | G114: PATRONAT MUNICIPAL D'OCUPACIÓ
A115: MONITOR | B115: 2007-12-31 | C115: 90 | D115: 0 | E115: 90 | F115: 131 - EQUIPAMENTS DE PROCESSO D'INFORMACIÓ | G115: PATRONAT MUNICIPAL D'OCUPACIÓ
A116: PC | B116: 2007-12-31 | C116: 700 | D116: 0 | E116: 700 | F116: 131 - EQUIPAMENTS DE PROCESSO D'INFORMACIÓ | G116: PATRONAT MUNICIPAL D'OCUPACIÓ
A117: MONITOR | B117: 2007-12-31 | C117: 90 | D117: 0 | E117: 90 | F117: 131 - EQUIPAMENTS DE PROCESSO D'INFORMACIÓ | G117: PATRONAT MUNICIPAL D'OCUPACIÓ
A118: PC | B118: 2007-12-31 | C118: 700 | D118: 0 | E118: 700 | F118: 131 - EQUIPAMENTS DE PROCESSO D'INFORMACIÓ | G118: PATRONAT MUNICIPAL D'OCUPACIÓ
A119: MONITOR | B119: 2007-12-31 | C119: 90 | D119: 0 | E119: 90 | F119: 131 - EQUIPAMENTS DE PROCESSO D'INFORMACIÓ | G119: PATRONAT MUNICIPAL D'OCUPACIÓ
A120: PC | B120: 2007-12-31 | C120: 700 | D120: 0 | E120: 700 | F120: 131 - EQUIPAMENTS DE PROCESSO D'INFORMACIÓ | G120: PATRONAT MUNICIPAL D'OCUPACIÓ
A121: MONITOR | B121: 2007-12-31 | C121: 90 | D121: 0 | E121: 90 | F121: 131 - EQUIPAMENTS DE PROCESSO D'INFORMACIÓ | G121: PATRONAT MUNICIPAL D'OCUPACIÓ
A122: PC | B122: 2007-12-31 | C122: 700 | D122: 0 | E122: 700 | F122: 131 - EQUIPAMENTS DE PROCESSO D'INFORMACIÓ | G122: PATRONAT MUNICIPAL D'OCUPACIÓ
A123: MONITOR | B123: 2007-12-31 | C123: 90 | D123: 0 | E123: 90 | F123: 131 - EQUIPAMENTS DE PROCESSO D'INFORMACIÓ | G123: PATRONAT MUNICIPAL D'OCUPACIÓ
A124: PC | B124: 2007-12-31 | C124: 700 | D124: 0 | E124: 700 | F124: 131 - EQUIPAMENTS DE PROCESSO D'INFORMACIÓ | G124: PATRONAT MUNICIPAL D'OCUPACIÓ
A125: MONITOR | B125: 2007-12-31 | C125: 90 | D125: 0 | E125: 90 | F125: 131 - EQUIPAMENTS DE PROCESSO D'INFORMACIÓ | G125: PATRONAT MUNICIPAL D'OCUPACIÓ
A126: PC | B126: 2007-12-31 | C126: 700 | D126: 0 | E126: 700 | F126: 131 - EQUIPAMENTS DE PROCESSO D'INFORMACIÓ | G126: PATRONAT MUNICIPAL D'OCUPACIÓ
A127: MONITOR | B127: 2007-12-31 | C127: 90 | D127: 0 | E127: 90 | F127: 131 - EQUIPAMENTS DE PROCESSO D'INFORMACIÓ | G127: PATRONAT MUNICIPAL D'OCUPACIÓ
A128: PC | B128: 2007-12-31 | C128: 700 | D128: 0 | E128: 700 | F128: 131 - EQUIPAMENTS DE PROCESSO D'INFORMACIÓ | G128: PATRONAT MUNICIPAL D'OCUPACIÓ
A129: MONITOR | B129: 2007-12-31 | C129: 90 | D129: 0 | E129: 90 | F129: 131 - EQUIPAMENTS DE PROCESSO D'INFORMACIÓ | G129: PATRONAT MUNICIPAL D'OCUPACIÓ
A130: PC | B130: 2007-12-31 | C130: 700 | D130: 0 | E130: 700 | F130: 131 - EQUIPAMENTS DE PROCESSO D'INFORMACIÓ | G130: PATRONAT MUNICIPAL D'OCUPACIÓ
A131: IMPRESSORA | B131: 2007-12-31 | C131: 380 | D131: 0 | E131: 380 | F131: 131 - EQUIPAMENTS DE PROCESSO D'INFORMACIÓ | G131: PATRONAT MUNICIPAL D'OCUPACIÓ
A132: SPLIT | B132: 2007-12-31 | C132: 400 | D132: 0 | E132: 400 | F132: 147 - MOBILIARI | G132: PATRONAT MUNICIPAL D'OCUPACIÓ
A133: SPLIT | B133: 2007-12-31 | C133: 400 | D133: 0 | E133: 400 | F133: 147 - MOBILIARI | G133: PATRONAT MUNICIPAL D'OCUPACIÓ
A134: SPLIT | B134: 2007-12-31 | C134: 400 | D134: 0 | E134: 400 | F134: 147 - MOBILIARI | G134: PATRONAT MUNICIPAL D'OCUPACIÓ
A135: SPLIT | B135: 2007-12-31 | C135: 400 | D135: 0 | E135: 400 | F135: 147 - MOBILIARI | G135: PATRONAT MUNICIPAL D'OCUPACIÓ
A136: MONITOR | B136: 2007-12-31 | C136: 90 | D136: 0 | E136: 90 | F136: 131 - EQUIPAMENTS DE PROCESSO D'INFORMACIÓ | G136: PATRONAT MUNICIPAL D'OCUPACIÓ
A137: PC | B137: 2007-12-31 | C137: 700 | D137: 0 | E137: 700 | F137: 131 - EQUIPAMENTS DE PROCESSO D'INFORMACIÓ | G137: PATRONAT MUNICIPAL D'OCUPACIÓ
A138: MONITOR | B138: 2007-12-31 | C138: 90 | D138: 0 | E138: 90 | F138: 131 - EQUIPAMENTS DE PROCESSO D'INFORMACIÓ | G138: PATRONAT MUNICIPAL D'OCUPACIÓ
A139: PC | B139: 2007-12-31 | C139: 700 | D139: 0 | E139: 700 | F139: 131 - EQUIPAMENTS DE PROCESSO D'INFORMACIÓ | G139: PATRONAT MUNICIPAL D'OCUPACIÓ
A140: DESTRUCTORA DE DOCUMENTS | B140: 2007-12-31 | C140: 180 | D140: 0 | E140: 180 | F140: 147 - MOBILIARI | G140: PATRONAT MUNICIPAL D'OCUPACIÓ
A141: MONITOR | B141: 2007-12-31 | C141: 90 | D141: 0 | E141: 90 | F141: 131 - EQUIPAMENTS DE PROCESSO D'INFORMACIÓ | G141: PATRONAT MUNICIPAL D'OCUPACIÓ
A142: PC | B142: 2007-12-31 | C142: 700 | D142: 0 | E142: 700 | F142: 131 - EQUIPAMENTS DE PROCESSO D'INFORMACIÓ | G142: PATRONAT MUNICIPAL D'OCUPACIÓ
A143: ESCANER | B143: 2007-12-31 | C143: 150 | D143: 0 | E143: 150 | F143: 131 - EQUIPAMENTS DE PROCESSO D'INFORMACIÓ | G143: PATRONAT MUNICIPAL D'OCUPACIÓ
A144: MONITOR | B144: 2007-12-31 | C144: 90 | D144: 0 | E144: 90 | F144: 131 - EQUIPAMENTS DE PROCESSO D'INFORMACIÓ | G144: PATRONAT MUNICIPAL D'OCUPACIÓ
A145: PC | B145: 2007-12-31 | C145: 700 | D145: 0 | E145: 700 | F145: 131 - EQUIPAMENTS DE PROCESSO D'INFORMACIÓ | G145: PATRONAT MUNICIPAL D'OCUPACIÓ
A146: PC | B146: 2007-12-31 | C146: 700 | D146: 0 | E146: 700 | F146: 131 - EQUIPAMENTS DE PROCESSO D'INFORMACIÓ | G146: PATRONAT MUNICIPAL D'OCUPACIÓ
A147: FORN | B147: 2007-12-31 | C147: 250 | D147: 0 | E147: 250 | F147: 147 - MOBILIARI | G147: PATRONAT MUNICIPAL D'OCUPACIÓ
A148: RENTAPLATS | B148: 2007-12-31 | C148: 300 | D148: 0 | E148: 300 | F148: 147 - MOBILIARI | G148: PATRONAT MUNICIPAL D'OCUPACIÓ
A149: FORN | B149: 2007-12-31 | C149: 250 | D149: 0 | E149: 250 | F149: 147 - MOBILIARI | G149: PATRONAT MUNICIPAL D'OCUPACIÓ
A150: MICROONES | B150: 2007-12-31 | C150: 70 | D150: 0 | E150: 70 | F150: 147 - MOBILIARI | G150: PATRONAT MUNICIPAL D'OCUPACIÓ
A151: MICROONES | B151: 2007-12-31 | C151: 70 | D151: 0 | E151: 70 | F151: 147 - MOBILIARI | G151: PATRONAT MUNICIPAL D'OCUPACIÓ
A152: NEVERA | B152: 2007-12-31 | C152: 400 | D152: 0 | E152: 400 | F152: 147 - MOBILIARI | G152: PATRONAT MUNICIPAL D'OCUPACIÓ
A153: SPLIT | B153: 2007-12-31 | C153: 400 | D153: 0 | E153: 400 | F153: 147 - MOBILIARI | G153: PATRONAT MUNICIPAL D'OCUPACIÓ
A154: CUINA | B154: 2007-12-31 | C154: 450 | D154: 0 | E154: 450 | F154: 147 - MOBILIARI | G154: PATRONAT MUNICIPAL D'OCUPACIÓ
A155: TELEVISOR | B155: 2007-12-31 | C155: 800 | D155: 0 | E155: 800 | F155: 147 - MOBILIARI | G155: PATRONAT MUNICIPAL D'OCUPACIÓ
A156: SPLIT | B156: 2007-12-31 | C156: 400 | D156: 0 | E156: 400 | F156: 147 - MOBILIARI | G156: PATRONAT MUNICIPAL D'OCUPACIÓ
A157: RENTACAPS DE PERRUQUERIA | B157: 2007-12-31 | C157: 900 | D157: 0 | E157: 900 | F157: 147 - MOBILIARI | G157: PATRONAT MUNICIPAL D'OCUPACIÓ
A158: CAMILLA | B158: 2007-12-31 | C158: 4500 | D158: 0 | E158: 4500 | F158: 147 - MOBILIARI | G158: PATRONAT MUNICIPAL D'OCUPACIÓ
A159: SPLIT | B159: 2007-12-31 | C159: 400 | D159: 0 | E159: 400 | F159: 147 - MOBILIARI | G159: PATRONAT MUNICIPAL D'OCUPACIÓ
A160: MIRALLS | B160: 2007-12-31 | C160: 320 | D160: 0 | E160: 320 | F160: 147 - MOBILIARI | G160: PATRONAT MUNICIPAL D'OCUPACIÓ
A161: SECADOR DE PEU | B161: 2007-12-31 | C161: 300 | D161: 0 | E161: 300 | F161: 147 - MOBILIARI | G161: PATRONAT MUNICIPAL D'OCUPACIÓ
A162: CALENTADOR DE CERA | B162: 2007-12-31 | C162: 70 | D162: 0 | E162: 70 | F162: 147 - MOBILIARI | G162: PATRONAT MUNICIPAL D'OCUPACIÓ
A163: SECADOR DE PEU | B163: 2007-12-31 | C163: 300 | D163: 0 | E163: 300 | F163: 147 - MOBILIARI | G163: PATRONAT MUNICIPAL D'OCUPACIÓ
A164: TELEVISOR | B164: 2007-12-31 | C164: 800 | D164: 0 | E164: 800 | F164: 147 - MOBILIARI | G164: PATRONAT MUNICIPAL D'OCUPACIÓ
A165: SPLIT | B165: 2007-12-31 | C165: 400 | D165: 0 | E165: 400 | F165: 147 - MOBILIARI | G165: PATRONAT MUNICIPAL D'OCUPACIÓ
A166: SPLIT | B166: 2007-12-31 | C166: 400 | D166: 0 | E166: 400 | F166: 147 - MOBILIARI | G166: PATRONAT MUNICIPAL D'OCUPACIÓ
B167: TOTAL: | C167: =SUM(C2:C166) -> 1887325.857 | D167: =SUM(D2:D166) -> 69675.45 | E167: =SUM(E2:E166) -> 1957001.307
